{"text_format":"1","workbook":"xlsx","n_sheets":6,"sheets":["Úvod","Údaje o firmě","základní hodnocení","nové hodnocení","závadné látky","návod na mapy"],"not_rendered":{"charts":0,"images":4,"macros":1,"external_links":0,"defined_names":5,"comments":2,"pivot_tables":0},"unopened":[],"bounds":{"document_bytes":16777216,"sheet_cells":100000,"rows_first":2000,"rows_last":500,"rows_between":2000,"halvings":0,"cell_chars":16384,"cell_head_chars":4096},"cells_cut":0,"cells_raw":0,"read":"whole","date_system":"1900"}

{"sheet":"Úvod","index":0,"n_rows":49,"n_cols":10,"rows_kept":49,"cut":false,"hidden":false,"merged":[[0,0,1,0],[10,2,10,6],[8,2,8,6],[2,2,2,9],[3,2,6,9]]}
["Tento soubor je chráněn autorskými právy a jeho další šíření třetím osobám v elektronické podobě není dovoleno. Akceptujte prosím tuto právní ochranu.",null,null,null,null,null,null,null,"verze",10102023]
[]
["Pokyny pro vyplnění formuláře Základní hodnocení rizik",null,"Kontaktní údaje:"]
[null,null,"ENVI GROUP s.r.o.\nPříčná 2186, 347 01 Tachov\ntel. 606 638 325\nwww.envigroup.cz, info@envigroup.cz"]
["Hodnocení rizik se provádí pro každé místo provozní činnosti a v hodnoceném provozním místě pro každou provozní činnost zvlášť. Pro každou provozní činnost se tedy zpracuje samostatné základní hodnocení rizika (s výjimkou IP - viz dále).\nProvozní činnost může být prováděna příležitostně, dočasně nebo kontinuálně."]
[]
["Odlišný přístup se použije při hodnocení rizik pro provozní zařízení podléhající vydání integrovaného povolení (provozní činnost č. 1). Pokud toto povolení zahrnuje více provozních činností uvedených pod provozními činnostmi č. 2 až 15 pro jedno místo provozní činnosti, tak se všechny tyto provozní činnosti hodnotí v rámci jednoho základního hodnocení rizika v částech B až F. Pokud provozovatel provádí další provozní činnost, kterou integrované povolení nezahrnuje, provede základní hodnocení rizika pro tuto provozní činnost zvlášť."]
[]
["Místo provozní činnosti je neoddělitelné od provozní činnosti a provozovatel je užívá pro provozování příslušných zařízení, místa vypouštění, čerpaní a odběrů vod, vzdouvání a akumulace povrchových vod, pro zacházení se závadnými látkami, nakládání a přepravu látek, pro nakládání s geneticky modifikovanými organizmy, materiály a odpady a pro provozování stacionárních zdrojů znečišťování ovzduší."]
[]
["Pokud jsou pro provozní činnosti vydána povolení podle zvláštních předpisů, potom je za místo (místa) provozní činnosti považováno místo (místa), pro které je toto povolení vydáno."]
[]
["Provozní činností 9 (zacházení se závadnými látkami) se rozumí činnost, při jejímž vykonávání je nezbytné naplnit § 39 odst. 2 a 4 zákona č. 254/2001 Sb., tj. provozovatel musí disponovat schváleným havarijním plánem. Provozní činnost č. 9 je spojena s místem provozní činnosti, kterým se pro danou provozní činnost považuje „ucelené provozní území“ podle § 2 písm. f) vyhlášky č. 450/2005 Sb."]
[]
["U provozní činnosti č. 10 se nakládáním s nebezpečnými chemickými látkami a chemickými přípravky (směsmi) rozumí \"jejich výroba, dovoz, vývoz, prodej, používání, skladování, balení, označování a vnitropodniková doprava\" (viz § 44a odst. 1 zákona č. 258/2000 Sb., o ochraně veřejného zdraví a o změně některých zákonů, ve znění pozdějších předpisů). Provozní činnost musí být odvoditelná z konkrétního správního aktu (správního rozhodnutí, povolení či souhlasu) ke skladování nebezpečných chemických látek či směsí (kolaudační rozhodnutí/souhlas), z havarijního plánu, živnostenského oprávnění či z předmětu obchodní činnosti spočívající v nakládání s těmito látkami (např. výroba chemických látek apod.)."]
[]
["Pokud při nakládání s některou látkou lze tuto látku zařadit současně jako závadnou látku podle vodního zákona i nebezpečnou chemickou látku dle chemického zákona, provádí se pouze 1 hodnocení rizik a to pro provozní činnost č.10. Bude-li tedy provozovatel nakládat podle havarijního plánu pouze s nebezpečnými chemickými látkami či směsmi, bude se jednat o provozovatele vykonávajícího provozní činnost č. 10.\nAle pozor:\nBude- li zároveň nakládat se závadnými látkami, např. odpady, hnojivy... (nebezpečné chemické látky či směsi se znovu nezapočítávají), bude zpracovávat samostatné hodnocení rizik také pro provozní činnost č. 9."]
[]
["U provozní činnosti č. 12 zákon č. 78/2004 Sb., rozlišuje tři způsoby nakládání s geneticky modifikovanými organismy (GMO).\nOsoba oprávněná k uzavřenému nakládání s GMO provede hodnocení rizik ekologické újmy pro pracoviště, na které se oprávnění vztahuje. Oznamovatel, popřípadě žadatel o uzavřené nakládání provede hodnocení rizik ekologické újmy současně s hodnocením rizika podle zákona č. 78/2004 Sb.\nDržitelé povolení k uvádění GMO do životního prostředí provedou hodnocení rizik ekologické újmy pro pozemek, na kterém nakládání probíhá, a vždy při změně umístění pokusu. Žadatelé o uvádění GMO do životního prostředí provedou hodnocení rizik ekologické újmy současně s hodnocením rizika podle zákona č. 78/2004 Sb.\nV případě GMO schválených pro uvedení do oběhu se nakládáním s nimi rozumí jejich předání jiné osobě [§ 3 odst. 1 písm. c) zákona č. 78/2004 Sb.]. V tomto případě se postupuje stejně jako u činností č. 11 a 13, tj. hodnocení rizik ekologické újmy se provádí pouze pro objekty a zařízení určené pro dočasné skladování nebo nakládku a vykládku během přepravy, které má provozovatel ve vlastnictví nebo nájmu.\nNa konečné uživatele GMO schválených pro uvedení do oběhu (zemědělec, který koupí GM osivo,\npěstuje GM odrůdu a skladuje sklizené GM zrno pro svou potřebu, dále zemědělec, který krmí GM\nkrmivem, spotřebitel) se bod 12 přílohy č. 1 zákona o újmě nevztahuje, neboť se nejedná o nakládání\ns GMO ve smyslu definice uvádění do oběhu."]
[]
["Zákon stanoví v § 14 odst. 1 zákona každému provozovateli povinnost provést hodnocení rizik jednotlivých provozních činností. V případě, že se v jednom objektu (areálu), který vlastní jedna osoba, nachází několik provozovatelů, zpracuje každý provozovatel za sebe hodnocení rizik pro jeho provozní činnost a místo provozní činnosti."]
[]
["Výjimky z hodnocení:","Zdroj výjimky:"]
[]
["Hodnocení rizik se neprovádí pro mobilní zařízení, u něhož není možno stanovit přesné místo provozní činnosti.","Metodický pokyn str. 3"]
[]
["Pro ostatní činnosti, které mohou způsobit ekologickou újmu, ale nejsou výslovně uvedeny v příloze č. 1 zákona, se základní hodnocení rizika neprovádí."]
[]
["Provozovatel, který vykonává provozní činnost pouze ve vypouštění odpadních vod, které neobsahují nebezpečné závadné látky nebo zvlášť nebezpečné závadné látky, není povinen prodádět základní hodnocení rizik (§ 14 odst 4 zákona).","§ 14 odst. 4 zákona"]
[]
["Výjimkou z povinnosti zpracování základního hodnocení rizika je provozní činnost č. 9, kdy příslušný provozovatel zachází se závadnými látkami, nebezpečnými závadnými látkami nebo zvlášť nebezpečnými závadnými látkami v celkovém množství, které nedosahuje limity stanovené v části B tohoto základního hodnocení.","Metodický pokyn str. 3"]
[]
["Pokud jsou nebezpečné chemické látky a přípravky nebo závadné látky součástí zařízení, jsou v něm pevně (hermeticky) uzavřeny, s těmito látkami se nenakládá a provozovatel používá zařízení pro provozní činnost neuvedenou v tabulce č. 1, potom se povinnost hodnocení rizika ekologické újmy na tato zařízení nevztahuje (např. transformátory).","Metodický pokyn str. 3"]
[]
["Ovládání formuláře:"]
["Pro doplnění údajů o firmě a zpracovateli hodnocení vyplňte údaje na listě \"Údaje o firmě\"."]
["Každé základní hodnocení začněte výběrem provozní činnosti na listě \"Základní hodnocení\" doplněním písmene A do řádku u příslušné činnosti. Tím se Vám příslušně nastaví formulář."]
["Formulář obsahuje vzorce, podmíněné formátování a další ovládací prvky. Pro zajištění stálé funkčnosti je formulář uzamčen pro změny. Buňky formuláře určené k vyplnění jsou označeny světle zelenou barvou:"]
[]
[]
[]
[]
[]
[]
[]
[]
[]
[]
["Pokud máte více činností a tím tedy zpracováváte více základních hodnocení, zkopírujte si list \"Základní hodnocení\" pomocí tlačíčka, které najdete v listě \"Základní hodnocení\". \n\nVytvořenou kopii si vhodně  pojmenujte (např. názvem činnosti). Přejmenování listu provedete dvojklikem myši na názvu listu."]

{"sheet":"Údaje o firmě","index":1,"n_rows":13,"n_cols":7,"rows_kept":13,"cut":false,"hidden":false,"merged":[[0,0,0,1],[12,0,12,1],[5,6,5,9],[9,3,9,8],[2,3,2,7]]}
["Základní údaje o firmě"]
[]
["Obchodní firma",null,null,"Pokud chcete v buňce ručně zalomit text (rozdělit text na více řádků), stiskněte na konci řádku Alt+Enter"]
["Sídlo"]
["IČO:"]
["Datová schránka",null,null,"Seznam datových schránek",null,null,"Pokud neznáte ID datové schránky, můžete ji nalézt na stránkách portálu veřejné správy (viz odkaz vlevo)"]
["Jméno a příjmení statutárního orgánu"]
["Telefon statutárního orgánu"]
["Email statutárního orgánu"]
["Zpracovatel hodnocení",null,null,"Sem můžete uvést osobu, která hodnocení zpracovala (není to povinný údaj z legislativy). Pozor, samotné základní hodnocení, ale musí podepsat statutární orgán, nebo osoba jím pověřená (např. plnou mocí)."]
["Datum hodnocení či aktualizace"]
[]
["Poznámka: tyto údaje se zkopírují do formuláře základního hodnocení (i do jeho kopií)"]

{"sheet":"základní hodnocení","index":2,"n_rows":185,"n_cols":36,"rows_kept":185,"cut":false,"hidden":false,"merged":[[84,19,84,20],[51,1,51,20],[62,22,62,37],[63,22,63,37],[64,22,64,37],[65,22,65,37],[66,22,66,37],[69,29,69,37],[70,29,70,37],[71,29,71,37],[69,25,71,28],[120,22,122,29],[74,26,75,32],[114,22,115,29],[110,27,112,31],[104,22,106,30],[102,22,103,23],[102,24,103,30],[88,22,88,24],[95,22,97,23],[93,22,94,30],[100,22,101,30],[98,24,99,30],[86,22,87,24],[86,26,87,28],[86,30,87,32],[84,27,84,37],[77,26,83,37],[88,26,89,32],[91,24,92,30],[91,22,92,23],[98,22,99,23],[95,24,97,30],[90,22,90,24],[93,32,94,34],[114,1,115,10],[118,1,119,10],[120,10,121,12],[121,19,121,20],[116,19,117,20],[118,19,119,20],[127,19,127,20],[116,17,117,18],[118,17,119,18],[116,11,116,16],[115,11,115,16],[114,17,115,18],[114,19,115,20],[114,11,114,16],[120,19,120,20],[123,15,123,16],[124,19,124,20],[125,19,125,20],[126,19,126,20],[122,13,122,16],[124,10,124,14],[123,10,123,14],[127,10,127,14],[126,10,126,14],[106,17,106,18],[106,19,106,20],[105,15,105,16],[105,17,105,18],[105,19,105,20],[102,15,102,16],[102,17,102,18],[102,19,102,20],[103,15,103,16],[103,17,103,18],[103,19,103,20],[96,19,96,20],[94,19,94,20],[104,15,104,16],[104,17,104,18],[104,19,104,20],[100,15,100,16],[100,17,100,18],[100,19,100,20],[101,15,101,16],[101,17,101,18],[101,19,101,20],[99,15,99,16],[99,17,99,18],[99,19,99,20],[97,13,97,16],[97,19,97,20],[98,15,98,16],[98,17,98,18],[98,19,98,20],[95,17,95,18],[97,17,97,18],[96,17,96,18],[95,13,95,16],[96,13,96,16],[88,0,89,0],[88,12,89,14],[86,1,87,11],[86,12,87,14],[61,0,66,0],[68,0,71,0],[73,0,75,0],[81,6,81,20],[104,0,106,0],[93,1,94,11],[93,12,94,14],[93,0,94,0],[95,0,97,0],[95,1,97,9],[95,10,97,12],[98,12,99,14],[100,12,101,14],[102,12,103,14],[98,0,99,0],[100,0,101,0],[102,0,103,0],[102,1,103,11],[104,1,106,14],[106,15,106,16],[184,1,189,18],[61,1,61,18],[68,1,68,18],[98,1,99,11],[100,1,101,11],[73,1,73,18],[163,17,170,18],[39,0,39,20],[40,0,40,20],[41,0,41,20],[47,8,47,20],[45,1,45,3],[44,4,44,20],[45,4,45,20],[46,4,46,20],[42,0,42,20],[163,19,170,20],[171,19,171,20],[155,17,155,18],[155,19,155,20],[153,17,153,18],[140,17,140,18],[141,17,141,18],[142,17,142,18],[38,2,38,20],[35,2,35,20],[36,2,36,12],[36,13,36,19],[43,1,43,3],[44,1,44,3],[154,19,154,20],[149,17,149,18],[149,19,149,20],[150,17,150,18],[150,19,150,20],[143,19,143,20],[146,19,146,20],[132,0,132,18],[153,19,153,20],[152,17,152,18],[152,19,152,20],[147,17,147,18],[151,17,151,18],[151,19,151,20],[114,0,115,0],[154,17,154,18],[86,0,87,0],[88,1,89,11],[174,22,190,33],[156,19,157,20],[158,17,162,18],[158,19,162,20],[156,17,157,18],[174,0,174,20],[175,19,175,20],[147,19,147,20],[148,17,148,18],[148,19,148,20],[150,0,152,0],[151,8,151,16],[150,8,150,16],[152,1,152,7],[153,0,155,0],[155,8,155,16],[152,8,152,16],[153,8,153,16],[155,1,155,7],[154,8,154,16],[150,1,151,7],[153,1,154,7],[177,0,177,1],[177,2,177,5],[140,19,140,20],[141,19,141,20],[142,19,142,20],[146,0,146,18],[138,19,138,20],[137,17,137,18],[138,17,138,18],[139,19,139,20],[139,17,139,18],[137,19,137,20],[139,9,139,16],[137,9,137,16],[138,9,138,16],[140,9,140,16],[141,9,141,16],[142,9,142,16],[137,0,139,0],[140,0,142,0],[137,1,138,8],[128,19,128,20],[127,15,127,16],[127,17,127,18],[122,17,122,18],[125,17,125,18],[126,15,126,16],[126,17,126,18],[125,15,125,16],[120,17,120,18],[121,17,121,18],[122,19,122,20],[118,0,119,0],[116,0,117,0],[116,1,117,10],[118,11,118,16],[119,11,119,16],[117,11,117,16],[120,0,122,0],[121,13,121,16],[122,1,122,12],[120,13,120,16],[120,1,121,9],[133,0,136,0],[127,0,128,0],[123,1,124,9],[127,1,128,9],[129,19,129,20],[128,10,128,14],[133,19,133,20],[133,17,133,18],[136,19,136,20],[134,17,134,18],[135,17,135,18],[134,19,134,20],[135,19,135,20],[136,17,136,18],[132,19,132,20],[123,17,123,18],[123,19,123,20],[124,15,124,16],[124,17,124,18],[136,9,136,16],[125,10,125,14],[128,15,128,16],[128,17,128,18],[123,0,124,0],[107,19,107,20],[111,19,111,20],[112,17,112,18],[112,19,112,20],[110,19,110,20],[111,0,111,18],[112,0,113,0],[113,19,113,20],[113,15,113,16],[113,17,113,18],[112,1,113,10],[112,11,113,14],[112,15,112,16],[93,19,93,20],[94,15,94,16],[94,17,94,18],[93,15,93,16],[93,17,93,18],[91,1,92,11],[91,12,92,14],[91,15,91,16],[91,17,91,18],[92,15,92,16],[92,17,92,18],[87,19,87,20],[85,19,85,20],[55,1,55,20],[52,1,54,20],[69,8,69,11],[70,8,70,11],[71,8,71,11],[56,1,58,20],[73,19,73,20],[65,15,65,18],[60,19,60,20],[61,19,61,20],[68,19,68,20],[62,19,62,20],[63,19,63,20],[64,19,64,20],[65,19,65,20],[66,19,66,20],[86,19,86,20],[74,12,74,16],[75,12,75,16],[74,19,74,20],[75,19,75,20],[76,19,76,20],[26,2,26,20],[29,2,29,20],[16,1,16,3],[15,1,15,3],[18,1,18,3],[15,4,15,19],[32,2,32,20],[31,2,31,20],[27,2,27,20],[28,2,28,20],[37,2,37,20],[34,2,34,20],[0,0,4,20],[23,2,23,20],[24,2,24,20],[25,2,25,20],[10,1,10,3],[12,1,12,19],[17,4,17,19],[18,4,18,19],[13,1,14,19],[16,4,16,19],[6,4,7,20],[8,4,9,20],[10,4,10,20],[11,0,11,20],[19,0,19,20],[5,0,5,20],[22,2,22,20],[21,1,22,1],[21,0,22,0],[21,2,21,20],[6,1,7,3],[8,1,9,3],[134,9,134,16],[135,9,135,16],[43,4,43,20],[30,2,30,20],[50,8,50,20],[48,1,48,7],[49,1,49,7],[49,8,49,20],[85,17,85,18],[86,15,86,16],[87,15,87,16],[87,17,87,18],[86,17,86,18],[66,12,66,14],[62,12,62,14],[63,12,63,14],[64,12,64,14],[65,12,65,14],[70,19,70,20],[71,19,71,20],[69,19,69,20],[33,2,33,20],[48,8,48,20],[50,1,50,7],[89,19,89,20],[95,19,95,20],[183,1,183,18],[156,0,170,0],[163,5,170,16],[156,5,157,16],[158,5,162,16],[156,1,160,4],[161,1,170,4],[175,0,175,18],[125,1,126,9],[133,1,135,8],[136,1,136,8],[139,1,139,8],[140,1,141,8],[142,1,142,4],[142,5,142,8],[148,8,148,16],[147,8,147,16],[147,0,149,0],[147,1,148,7],[149,8,149,16],[149,1,149,7],[133,9,133,16],[117,27,119,34],[117,24,119,26],[125,0,126,0],[88,35,89,37],[96,31,96,33],[104,31,104,32],[104,33,106,36],[88,33,89,34],[90,33,90,34],[91,31,92,32],[90,26,90,32],[91,0,92,0],[90,15,90,16],[90,17,90,18],[90,19,90,20],[90,1,90,11],[90,12,90,14],[91,19,91,20],[92,19,92,20],[88,15,88,16],[88,17,88,18],[88,19,88,20],[89,15,89,16],[89,17,89,18]]}
["Základní hodnocení rizika \nekologické újmy \npodle zákona č. 167/2008 Sb.\n o předcházení ekologické újmě a o její nápravě"]
[]
[]
[]
[]
[null,null,null,null,null,null,null,null,null,null,null,null,null,null,null,null,null,null,null,null,null,null,null," "]
[null,"Provozovatel:",null,null,{"$f":"IF('Údaje o firmě'!B3=\"\",\"\",'Údaje o firmě'!B3)","v":""},null,null,null,null,null,null,null,null,null,null,null,null,null,null,null,null,null,null,null,null," "," ",null,null,null," "]
[]
[null,"Sídlo:",null,null,{"$f":"IF('Údaje o firmě'!B4=\"\",\"\",'Údaje o firmě'!B4)","v":""}]
[null,null,null,null,null,null,null,null,null,null,null,null,null,null,null,null,null,null,null,null,null,null,null,null,null,null,null,null,null," "]
[null,"IČ:",null,null,{"$f":"IF('Údaje o firmě'!B5=\"\",\"\",'Údaje o firmě'!B5)","v":""}]
[]
[null,"Hodnocená provozní činnost:"]
[null,{"$f":"IF(X40=0,\"\",IF(W24=1,\"Všechny činnosti z přílohy č.1 zákona 167/2008 Sb., které jsou pod integrovaným povolením\",VLOOKUP(X40,B24:C39,2)))","v":""}]
[]
[null,"Název:",null,null,{"$f":"IF(B53=\"\",\"\",B53)","v":""}]
[null,"Umístění:",null,null,{"$f":"IF(B57=\"\",\"\",B57)","v":""}]
[null,"Zpracoval:",null,null,{"$f":"IF('Údaje o firmě'!B10=\"\",\"\",'Údaje o firmě'!B10)","v":""}]
[null,"Datum:",null,null,{"$f":"IF('Údaje o firmě'!B11=\"\",\"\",'Údaje o firmě'!B11)","v":""}]
[]
[]
["Výběr činnosti:\nA","číslo","Výběr provozní činnosti:"]
[null,null,"příloha č. 1 zákona č. 167/2008 Sb."]
[null,1,"Provozování zařízení podléhající vydání integrovaného povolení zákona č. 76/2002 Sb. o integrované prevenci",null,null,null,null,null,null,null,null,null,null,null,null,null,null,null,null,null,null,null,{"$f":"IF(A24=\"\",0,1)","v":0},{"$f":"IF(W24=1,B24,\"\")","v":""}]
[null,2,"Provozování zařízení k využívání, odstraňování, sběru nebo výkupu odpadů podléhajících souhlasu podle zákona o odpadech",null,null,null,null,null,null,null,null,null,null,null,null,null,null,null,null,null,null,null,{"$f":"IF(A25=\"\",0,1)","v":0},{"$f":"IF(W25=1,B25,\"\")","v":""}]
[null,3,"Vypouštění odpadních vod do vod povrchových nebo podzemních podléhajících povolení podle § 8 odst. 1 písm. c) zákona č. 254/2001 Sb. o vodách, Nařízení vlády č. 401/2015 Sb., o ukazatelích a hodnotách přípustného znečištění povrchových vod a odpadních vod, náležitostech povolení k vypouštění odpadních vod do vod povrchových a do kanalizací a o citlivých oblastech",null,null,null,null,null,null,null,null,null,null,null,null,null,null,null,null,null,null,null,0,""]
[null,4,"Čerpání znečištěných podzemních vod a jejich následné odvádění do vod povrchových nebo podzemních podléhající povolení podle § 8 odst. 1 písm. c) zákona č. 254/2001 Sb. o vodách",null,null,null,null,null,null,null,null,null,null,null,null,null,null,null,null,null,null,null,0,"",null,null,null," "]
[null,5,"Odběr povrchových vod podléhající povolení podle § 8 odst. 1 písm. a) bod 1 zákona č. 254/2001 Sb. o vodách",null,null,null,null,null,null,null,null,null,null,null,null,null,null,null,null,null,null,null,0,""]
[null,6,"Odběr podzemních vod podléhající povolení podle § 8 odst. 1 písm. b) bod 1 zákona č. 254/2001 Sb. o vodách",null,null,null,null,null,null,null,null,null,null,null,null,null,null,null,null,null,null,null,0,""]
[null,7,"Čerpání povrchových nebo podzemních vod a jejich následné vypouštění do těchto vod za účelem získání tepelné energie podléhající povolení podle z § 8 odst. 1 písm. d) zákona č. 254/2001 Sb. o vodách",null,null,null,null,null,null,null,null,null,null,null,null,null,null,null,null,null,null,null,0,""]
[null,8,"Vzdouvání nebo akumulace povrchových vod podléhající povolení podle § 8 odst. 1 písm. a) bod 2 zákona č. 254/2001 Sb. o vodách",null,null,null,null,null,null,null,null,null,null,null,null,null,null,null,null,null,null,null,0,""]
[null,9,"Zacházení se závadnými látkami podle § 39 odst. 2 a 4 zákona č. 254/2001 Sb. o vodách, Vyhláška č. 450/2005 Sb., o náležitostech nakládání se závadnými látkami a náležitostech havarijního plánu, způsobu a rozsahu hlášení havárií, jejich zneškodňování a odstraňování jejich škodlivých následků",null,null,null,null,null,null,null,null,null,null,null,null,null,null,null,null,null,null,null,0,""]
[null,10,"Nakládání s nebezpečnými chemickými látkami a chemickými přípravky (zákon č. 350/2011 Sb. o chemických látkách a směsích), přípravky na ochranu rostlin (§ 2 odst. 2 písm. g) zákona č. 326/2004 Sb., o rostlinolékařské péči) nebo biocidními přípravky (zákon č. 324/2016 Sb., o biocidech) podle zvláštního právního předpisu (§ 44a zákona č. 258/2000 Sb., o ochraně veřejného zdraví)",null,null,null,null,null,null,null,null,null,null,null,null,null,null,null,null,null,null,null,0,""]
[null,11,"Přeprava nebezpečných chemických látek a nebezpečných chemických přípravků potrubím nebo v železniční (např. zákon č. 266/1994 Sb., o drahách, RID, COTIF), silniční (např. zákon č. 111/1994 Sb., o silniční dopravě, dohoda ADR), vodní vnitrozemské (zákon č. 114/1995 Sb., o vnitrozemské plavbě), letecké (vyhláška č. 17/1966 Sb., o leteckém přepravním řádu) nebo námořní dopravě (zákon č. 61/2000 Sb., o námořní plavbě)",null,null,null,null,null,null,null,null,null,null,null,null,null,null,null,null,null,null,null,0,""]
[null,12,"Nakládání s geneticky modifikovanými organismy a genetickými produkty podle zákon č. 78/2004 Sb., o nakládání s geneticky modifikovanými organismy a genetickými produkty",null,null,null,null,null,null,null,null,null,null,null,null,null,null,null,null,null,null,null,0,""]
[null,13,"Přeshraniční přeprava odpadů do České republiky, z České republiky a přes Českou republiku (podle zákona  o odpadech)",null,null,null,null,null,null,null,null,null,null,null,null,null,null,null,null,null,null,null,0,""]
[null,14,"Provozování stacionárních zdrojů znečišťování ovzduší podléhajících povolení podle zákona o ovzduší",null,null,null,null,null,null,null,null,null,null,"Jedná se o zdroj s topným médiem plyn a při jeho činnosti nevznikají chem.látky ani odpady? Doplňte ano/ne:",null,null,null,null,null,null,"ne",null,0,"",{"$f":"IF(OR(U37=\"ano\",U37=\"ne\"),\"\",\"Doplňte pouze slovo ano nebo ne !!!\")","v":""}]
[null,15,"Nakládání s těžebním odpadem (zákon č. 157/2009 Sb., o nakládání s těžebním odpadem)",null,null,null,null,null,null,null,null,null,null,null,null,null,null,null,null,null,null,null,0,""]
[null,16,"Provozování úložišť oxidu uhličitého podléhajících povolení podle zákona č. 85/2012 Sb., o ukládání oxidu uhličitého do přírodních horninových struktur",null,null,null,null,null,null,null,null,null,null,null,null,null,null,null,null,null,null,null,0,""]
["Výsledek posouzení provozovaných činností:",null,null,null,null,null,null,null,null,null,null,null,null,null,null,null,null,null,null,null,null,null,{"$f":"SUM(W24:W39)","v":0},{"$f":"SUM(X24:X39)","v":0}]
[{"$f":"IF(W40=0,\"Není třeba dále posuzovat\",\"Je nutno dále posoudit\")","v":"Není třeba dále posuzovat"}]
[{"$f":"IF(W24=1,\"Vybrali jste činnost pod integrovaným povolením, v tomto případě označte výše písmenem A všechny činnosti, které Vaše IP zahrnuje\",(IF(W40>=2,\"Pozor, vybrali jste více činností! Každá činnost se posuzuje samostatně!\",\"\")))","v":""}]
["Část A - Identifikační údaje o provozovateli "]
["1.","Obchodní firma",null,null,{"$f":"IF('Údaje o firmě'!B3=\"\",\"\",'Údaje o firmě'!B3)","v":""}]
[null,"Sídlo",null,null,{"$f":"IF('Údaje o firmě'!B4=\"\",\"\",'Údaje o firmě'!B4)","v":""}]
[null,"IČO:",null,null,{"$f":"IF('Údaje o firmě'!B5=\"\",\"\",'Údaje o firmě'!B5)","v":""}]
[null,"Datová schránka",null,null,{"$f":"IF('Údaje o firmě'!B6=\"\",\"\",'Údaje o firmě'!B6)","v":""}]
["2.","Jméno a příjmení statutárního orgánu",null,null,null,null,null,null,{"$f":"IF('Údaje o firmě'!B7=\"\",\"\",'Údaje o firmě'!B7)","v":""}]
[null,"Telefon",null,null,null,null,null,null,{"$f":"IF('Údaje o firmě'!B8=\"\",\"\",'Údaje o firmě'!B8)","v":""}]
[null,"Email:",null,null,null,null,null,null,{"$f":"IF('Údaje o firmě'!B9=\"\",\"\",'Údaje o firmě'!B9)","v":""}]
["3.","Pořadové číslo činnosti",null,null,null,null,null,null,{"$f":"IF(W24=1,1,(IF(SUM(X24:X39)=0,\"\",SUM(X24:X39))))","v":""}]
["4.","Název místa provozní činnosti, pro které se provádí hodnocení rizika"]
[]
[]
[]
[null,"Poloha místa provozní činnosti, pro které se provádí hodnocení rizika"]
[]
[]
[]
[]
["Část B",null,null,null,null,null,null,null,null,null,null,null,null,null,null,null,null,null,null,"Body"]
["5.","Množství chemických látek a směsí umístěných v místě provozní činnosti uvedené pod body 10 a 11 přesahuje pro látky či směsi",null,null,null,null,null,null,null,null,null,null,null,null,null,null,null,null,null,{"$f":"IF(OR(W33=1,W34=1),\"Vyplnit\",\"Nevyplňovat\")","v":"Nevyplňovat"},null,null,"Zde můžete informačně uvést jednotlivé látky:"]
[null,"a) Vysoce toxické R-26, R-27, R-28, H330, H310, H300",null,null,null,null,null,null,null,null,null,null,null,null,null,null,null,null,"limit : 0,5 t, body : 10"]
[null,"b) Toxické R-23, R-24, R-25, H331, H311, H301",null,null,null,null,null,null,null,null,null,null,null,null,null,null,null,null,"limit : 5,0 t, body : 10"]
[null,"c) Nebezpečné pro ŽP R50, H400",null,null,null,null,null,null,null,null,null,null,null,null,null,null,null,null,"limit : 10,0 t, body : 10"]
[null,"d) Nebezpečné pro ŽP R51,R52,R53,R54,R55,R56,H411,H412,H413",null,null,null,null,null,null,null,null,null,null,null,null,null,"limit : 20 t, body : 10"]
[null,"e) Látky, které při styku s vodou uvolňují toxický plyn R29, EUH029",null,null,null,null,null,null,null,null,null,null,null,null,null,null,null,null,"limit : 0,5 t, body : 10"]
[]
["6.","Množství závadných látek v místě provozní činnosti pod bodem 9 přesahuje pro",null,null,null,null,null,null,null,null,null,null,null,null,null,null,null,null,null,{"$f":"IF(W32=1,\"Vyplnit\",\"Nevyplňovat\")","v":"Nevyplňovat"},null,null,null,null,null,null,null,null,null,"Zde můžete informačně uvést jednotlivé závadné látky, NZL či ZNZL:"]
[null,"a) závadné látky",null,null,null,null,null,null,null,null,null,null,null,null,null,null,null,null,"množství 2000 l nebo 2000 kg, body : 5",null,null,null,null,null,null,"příloha č. 1 vodního zákona uvádí nebezpečné závadné látky a zvlášť nebezpečné závadné látky"]
[null,"b) nebezpečné závadné látky ",null,null,null,null,null,null,null,null,null,null,null,null,null,null,null,null,"množství 150 l nebo 150 kg, body : 5"]
[null,"c) zvlášť nebezpečné závadné látky",null,null,null,null,null,null,null,null,null,null,null,null,null,null,null,null,"množství 15 l nebo 15 kg, body : 5"]
[]
["7.","Provozovatel, který je oprávněn nakládat v místě provozní činnosti s nebezpečnými odpady, vybranými výrobky, vybranými odpady nebo vybranými zařízeními",null,null,null,null,null,null,null,null,null,null,null,null,null,null,null,null,null,{"$f":"IF(OR(W25=1,W27=1,W32=1,W33=1,W34=1,W35=1,W36=1,AND(W37=1,U37=\"ne\"),W38=1),\"Vyplnit\",\"Nevyplňovat\")","v":"Nevyplňovat"}]
[null,"a) s nebezpečnými odpady: ",null,null,null,null,null,null,null,null,null,null,null,null,null,null,null,null,"body : 5",null,null,null,null,null,null,null,"Provozovatel stacionárního zdroje znečišťování ovzduší (provozní činnost 14) s povolením na topné medium plyn a při jehož činnosti nevznikají chemické látky ani odpady, část B a C nevyplňuje."]
[null,"b) s vybranými výrobky, vybranými odpady či vybranými zařízeními:",null,null,null,null,null,null,null,null,null,null,null,null,null,null,null,null,"body : 5"]
[null,null,null,null,null,null,null,null,null,null,null,null,null,null,null,null,null,null,"Suma za část B",{"$f":"T63+T64+T65+T66+T67+T70+T71+T72+T75+T76","v":0}]
[]
[]
["Posouzení dalšího postupu hodnocení rizika:"]
[]
[]
[null,null,null,null,null,null,null,null,null,{"$f":"IF(AND(T77=0,OR(W32=1,W33=1,W34=1,W37=1,W38=1)),\"Část C se nevyplňuje, pokračujte až částí D!\",\"Část C (část 1 či 2 - viz dále) je nutno vyplnit!\")","v":"Část C (část 1 či 2 - viz dále) je nutno vyplnit!"}]
[]
["Část C -1",null,null,null,null,null,null,null,null,null,null,null,null,null,null,null,null,null,null,"Body"]
["Část C.1 - pro provozní činnosti uvedené pod body 1, 2, 9 až 15",null,null,null,null,null,null,null,null,null,null,null,null,null,null,null,null,null,null,{"$f":"IF(W24=1,\"Vyplnit\",IF(AG86+AF86=2,\"Vyplnit\",\"Nevyplňovat\"))","v":"Nevyplňovat"},null,null,null,null,null,null,null,null,null,null,null,{"$f":"IF(AND(T77=0,OR(W32=1,W33=1,W34=1,W37=1,W38=1,W40=0)),\"0\",\"1\")","v":"0"},{"$f":"IF(OR(W24=1,W25=1,W32=1,W33=1,W34=1,W35=1,W36=1,W37=1,W38=1,W39=1),\"1\",\"0\")","v":"0"}]
["8.","Název vymezené ptačí oblasti nebo evropsky významné lokality a jeho vzdálenost od místa provozní činnost:",null,null,null,null,null,null,null,null,null,null,null,null,null,"do 100 m",null,"body : 10",null,null,null,null,"odkaz na mapy AOPKČR",null,null,null,"návod na použití mapy Agentura ochrany přírody a krajiny České republiky"]
[null,null,null,null,null,null,null,null,null,null,null,null,null,null,null,"100 - 500 m",null,"body : 5"]
["9.","Název nejbližšího významného vodního toku a jeho vzdálenost od místa provozní činnosti:",null,null,null,null,null,null,null,null,null,null,null,null,null,"do 50 m",null,"body : 5",null,null,null,null,"odkaz na mapu",null,null,null,"Nejdříve si zjistěte, zda se do vzdálenosti 500 m od místa činnosti nějaký vodní tok nachází (například na mapě-viz odkaz vlevo). Pak zkuste najít jeho název v příloze č. 1 vyhl. 178/2012 Sb. (viz odkaz vpravo), abyste zjistili, zda se jedná o významný tok či nikoliv.",null,null,null,null,null,null,"příloha č. 1 vyhlášky č. 178/2012 Sb.",null,"Poznámka ZF: osobně vzdálenosti pak měřím  na mapě na Seznam.cz, na mapě VUV se mi to moc nedaří."]
[null,null,null,null,null,null,null,null,null,null,null,null,null,null,null,"50 - 500 m",null,"body : 2"]
["10.","Název zranitelné oblasti a její vzdálenost od místa provozní činnosti:",null,null,null,null,null,null,null,null,null,null,null,null,null,"do 50 m",null,"body : 5",null,null,null,null,"odkaz na mapu",null,null,null,"Za zranitelnou oblast je považováno vždy celé katastrální území - seznam je v příloze č.1 NV 262/2012 Sb. "]
["11.","Název povrchových vod vhodných pro život a reprodukci původních druhů ryb a dalších vodních živočichů a jejich vzdálenost od místa provozní činnosti:",null,null,null,null,null,null,null,null,null,null,null,null,null,"do 25 m",null,"body : 5",null,null,null,null,"odkaz na mapu",null,"(bod 10 pro část C2) Název povrchových vod vhodných pro život a reprodukci původních druhů ryb a dalších vodních živočichů se uvede podle přílohy č. 1 nařízení vlády č. 71/2003 Sb. Hledat můžete i na informačním mapovém portále - odkaz vlevo.",null,null,null,null,null,null,"příloha č. 1 NV č. 71/2003 Sb."]
[null,null,null,null,null,null,null,null,null,null,null,null,null,null,null,"25 - 250 m",null,"body : 2"]
["12.","Název vodní nádrže, popř. vodárenské nádrže a její vzdálenost od místa provozní činnosti:",null,null,null,null,null,null,null,null,null,null,null,null,null,"do 25 m",null,"body : 5",null,null,null,null,"(bod 11 pro část C2) Název vodní nádrže se zjistí podle § 5 odst. 1 vyhlášky č. 252/2013 Sb. A vodárenské nádrže s akumulací větší než 1 mil. m3  jsou uvedeny v příloze vyhlášky č. 137/1999 Sb.",null,null,null,null,null,null,null,null,"vodní nádrže:","odkaz na mapu (na mapě si zapněte vrstvu Nádrže)"]
[null,null,null,null,null,null,null,null,null,null,null,null,null,null,null,"25 - 250 m",null,"body : 2",null,null,null,null,null,null,null,null,null,null,null,null,null,"vodárenské nádrže:"]
["13.","Název a číselný identifikátor hydrogeologického rajonu v místě provozní činnosti:",null,null,null,null,null,null,null,null,null,null,null,"Začíná číslem 1 a 21",null,null,null,"body : 5",null,null,null,null,"odkaz na mapu",null,"(bod 12 pro část C2) Název a číselný identifikátor hydrogeologického rajonu se uvede podle přílohy č. 6 vyhlášky č. 5/2011 Sb. Číselné označení rajonu je možno také vyhledat na mapovém portále - odkaz vlevo."]
[null,null,null,null,null,null,null,null,null,null,null,null,null,"Začíná číslem 4 \ns výjimkou čísla 43",null,null,null,"body : 2",null,null,null,null,null,null,null,null,null,null,null,null,null,"příloha č.6 vyhl. 5/2011 Sb."]
[null,null,null,null,null,null,null,null,null,null,null,null,null,"Začíná jiným číslem",null,null,null,"body : 1"]
["14.","Název ochranného pásma vodních zdrojů a jeho vzdálenost od místa provozní činnosti:",null,null,null,null,null,null,null,null,null,null,null,null,null,"do 50 m",null,"body : 5",null,null,null,null,"odkaz na mapu",null,"(bod 13 pro část C2) Ochranná pásma jsou vyznačena tabulkami v terénu a jejich mapové zobrazení je uvedené na vodohospodářských mapách a je možno také vyhledat na mapovém portále - odkaz vlevo."]
[null,null,null,null,null,null,null,null,null,null,null,null,null,null,null,"50 - 250 m",null,"body : 2"]
["15.","Název ochranného pásma přírodních léčivých zdrojů a zdrojů přírodní minerální vody a jeho vzdálenosti od místa provozní činnosti:",null,null,null,null,null,null,null,null,null,null,null,null,null,"do 50 m",null,"body : 10",null,null,null,null,"(bod 14 pro část C2) Název ochranného pásma přírodních léčivých zdrojů a zdrojů přírodní minerální vody se vyhledá v prováděcích předpisech k zákonu č. 164/2001 Sb. lázeňský zákon, kde jsou graficky vyznačeny.",null,null,null,null,null,null,null,null,"Ochranná pásma a lázeňská místa"]
[null,null,null,null,null,null,null,null,null,null,null,null,null,null,null,"50 - 250 m",null,"body : 5",null,null,null,null,null,null,null,null,null,null,null,null,null,"https://www.zakonyprolidi.cz/cs/2001-164/souvislosti"]
["16.","Název chráněné oblasti přirozené akumulace podzemních vod a její vzdálenost k místu provozní činnosti:",null,null,null,null,null,null,null,null,null,null,null,null,null,"do 50 m",null,"body : 5",null,null,null,null,"odkaz na mapu",null,"(bod 15 pro část C2) Název chráněné oblasti přirozené akumulace podzemních vod podle § 28 zákona č. 254/2001 Sb. Tyto oblasti jsou stanoveny samostatným prováděcím předpisem, ve kterém je uveden popis jejich hranic. Možno také vyhledat na mapě - viz odkaz vlevo.",null,null,null,null,null,null,"https://www.zakonyprolidi.cz/cs/2001-164/souvislosti"]
[null,null,null,null,null,null,null,null,null,null,null,null,null,null,null,"50 - 250 m",null,"body : 2"]
["17.","Topografické poměry území - sklon terénu a jeho směr k vodohospodářským objektům a jiným chráněným územím uvedeným u výše uvedených bodů",null,null,null,null,null,null,null,null,null,null,null,null,null,"do 7°",null,"body : 2",null,null,null,null,"Topografické poměry území – průměrný sklon terénu a jeho směr k vodohospodářským objektům a jiným chráněným územím uvedeným v bodě 8 – 17 se uvedou na základě odečtu z mapy nebo přímého měření v terénu.\nPokud není přímá spojitost mezi místem činnosti a zmíněnými objekty a územími (například se mezi nimi nalézá údolí), bodové ohodnocení je 0.",null,null,null,null,null,null,null,null,"odkaz na mapy",null,"Zapnout tématickou úlohu Přírodní poměry, pak výběr Sklonitosti ve skupině Výškopis. Pak zapnout zobrazení legendy. V nastavení služby (… u Výškopisu) lze zvýšit průhlednost vrstvy a tím snáze najít přesné místo činnosti."]
[null,null,null,null,null,null,null,null,null,null,null,null,null,null,null,"7°do 12 °",null,"body : 3"]
[null,null,null,null,null,null,null,null,null,null,null,null,null,null,null,"více než 12°",null,"body : 5"]
[null,null,null,null,null,null,null,null,null,null,null,null,null,null,null,null,null,null,"Suma za část C.1",{"$f":"SUM(T87:U107)","v":0}]
[]
[]
["Část C - 2",null,null,null,null,null,null,null,null,null,null,null,null,null,null,null,null,null,null,"Body",null,null,null,null,null,null,null,"Výše uvedené vysvětlivky v části C.1 platí i pro tuto část C.2."]
["Část C.2 - pro provozní činnosti uvedené pod body 3 až 8",null,null,null,null,null,null,null,null,null,null,null,null,null,null,null,null,null,null,{"$f":"IF(W24=1,\"Nevyplňovat\",(IF(OR(W26=1,W27=1,W28=1,W29=1,W30=1,W31=1),\"Vyplnit\",\"Nevyplňovat\")))","v":"Nevyplňovat"}]
["8.","Název vymezené ptačí oblasti nebo evropsky významné lokality a jeho vzdálenost od místa provozní činnosti:",null,null,null,null,null,null,null,null,null,null,null,null,null,"do 100 m",null,"body : 10"]
[null,null,null,null,null,null,null,null,null,null,null,null,null,null,null,"100 - 500 m",null,"body : 5",null,null,null,null,null,null,null,null,null,null,null,null,null,{"$f":"IF(OR(W26=1,W27=1),1,0)","v":0},"0 - nevyplnit, 1 - vyplnit"]
["9.","Název nejbližšího významného vodního toku:\n(pouze v případě provozní činnosti č. 3 nebo 4)",null,null,null,null,null,null,null,null,null,{"$f":"IF(W24=1,\"Nevyplňovat\",(IF(AF114+AF115=2,\"Vyplnit\",\"Nevyplňovat\")))","v":"Nevyplňovat"},null,null,null,null,null,"body : 5",null,null,null,null,"Vyplňte pouze pokud se vypouští (činnost č.3) či odvádí (činnost č.4) do povrchových vod (tj. pokud je významný tok přímo dotčen činností)\nV opačném případě vyplňuje bod č. 12.",null,null,null,null,null,null,null,null,{"$f":"IF(OR(T121>0,T122>0,T123>0),0,1)","v":1}]
[]
["10.","Název povrchových vod vhodných pro život a reprodukci původních druhů ryb a dalších vodních živočichů a jejich vzdálenost od místa provozní činnosti (pouze v případě, že jsou tyto vody přímo dotčené provozní činností č. 3 nebo 4):",null,null,null,null,null,null,null,null,null,{"$f":"IF(W24=1,\"Nevyplňovat\",(IF(OR(W26=1,W27=1),\"Vyplnit\",\"Nevyplňovat\")))","v":"Nevyplňovat"},null,null,null,null,null,"body : 5"]
[null,null,null,null,null,null,null,null,null,null,null,null,null,null,null,null,null,null,null,null,null,null,null,null,"Poznámka pro činnost 1 zahrnující činnosti 3 až 8",null,null,"Jestliže jsou všechny činnosti provozovatele zahrnuty do integrovaného povolení, pak se samozřejmě dělá jen jedno Základní hodnocení a pak se dělá v souladu s NV 295/2011 pouze pro část C.1 (nikoliv i pro C.2).  Části C1 a C2 (kromě dvou kritérií - C.1.10 a C.2.15.) totiž hodnotí stejná kritéria. \nIng. Šárka Mikundová, Ministerstvo životního prostředí (mail 12.1.2013)"]
["11.","Název vodní nádrže, popř. vodárenské nádrže:\n(pouze v případě provozní činnosti č. 3 nebo 4)",null,null,null,null,null,null,null,null,null,{"$f":"IF(W24=1,\"Nevyplňovat\",(IF(OR(W26=1,W27=1),\"Vyplnit\",\"Nevyplňovat\")))","v":"Nevyplňovat"},null,null,null,null,null,"body : 5"]
[]
["12.","Název a číselný identifikátor hydrogeologického rajonu v místě provozní činnosti:",null,null,null,null,null,null,null,null,{"$f":"IF(W24=1,\"Nevyplňovat\",(IF(AF121+AF122=2,\"Vyplnit\",\"Nevyplňovat\")))","v":"Nevyplňovat"},null,null,"Začíná číslem 1 a 21",null,null,null,"body : 5",null,null,null,null,"Vyplňujete pouze pokud provozovatel vypouští (provozní činnost č.3) či odvádí (provozní činnost č.4) do podzemních vod. \nV opačném případě vyplňuje bod č. 9.",null,null,null,null,null,null,null,null,{"$f":"IF(OR(W26=1,W27=1,W30=1),1,0)","v":0},"0 - nevyplnit, 1 - vyplnit"]
[null,null,null,null,null,null,null,null,null,null,null,null,null,"Začíná číslem 4 s výjimkou čísla 43",null,null,null,"body : 2",null,null,null,null,null,null,null,null,null,null,null,null,null,{"$f":"IF(T115>0,0,1)","v":1}]
[null,null,null,null,null,null,null,null,null,null,null,null,null,"Začíná jiným číslem",null,null,null,"body : 1"]
["13.","Název ochranného pásma vodních zdrojů a jeho vzdálenost od místa provozní činnosti:",null,null,null,null,null,null,null,null,{"$f":"IF(W24=1,\"Nevyplňovat\",(IF(OR(W26=1,W27=1,W30=1),\"Vyplnit\",\"Nevyplňovat\")))","v":"Nevyplňovat"},null,null,null,null,"do 50 m",null,"body : 5"]
[null,null,null,null,null,null,null,null,null,null,null,null,null,null,null,"50 - 250 m",null,"body : 2"]
["14.","Název ochranného pásma přírodních léčivých zdrojů a zdrojů přírodní minerální vody a jeho vzdálenosti od místa provozní činnosti:",null,null,null,null,null,null,null,null,{"$f":"IF(W24=1,\"Nevyplňovat\",(IF(OR(W26=1,W27=1,W29=1,W30=1),\"Vyplnit\",\"Nevyplňovat\")))","v":"Nevyplňovat"},null,null,null,null,"do 50 m",null,"body : 10"]
[null,null,null,null,null,null,null,null,null,null,null,null,null,null,null,"50 - 250 m",null,"body : 5"]
["15.","Název chráněné oblasti přirozené akumulace podzemních vod a její vzdálenost k místu provozní činnosti:",null,null,null,null,null,null,null,null,{"$f":"IF(W24=1,\"Nevyplňovat\",(IF(OR(W26=1,W27=1,W29=1,W30=1),\"Vyplnit\",\"Nevyplňovat\")))","v":"Nevyplňovat"},null,null,null,null,"do 50 m",null,"body : 5"]
[null,null,null,null,null,null,null,null,null,null,null,null,null,null,null,"50 - 250 m",null,"body : 2"]
[null,null,null,null,null,null,null,null,null,null,null,null,null,null,null,null,null,null,"Suma za část C.2",{"$f":"SUM(T113:U129)","v":0}]
[]
[]
["Část D",null,null,null,null,null,null,null,null,null,null,null,null,null,null,null,null,null,null,"Body"]
["18.","Identifikace možných scénářů vzniku ekologické újmy pro hodnocenou provozní činnost",null,null,null,null,null,null,null,"únik kapalné látky do půdy / vody",null,null,null,null,null,null,null,"body : 5"]
[null,null,null,null,null,null,null,null,null,"působení pevné látky na půdu / vodu",null,null,null,null,null,null,null,"body : 2"]
[null,null,null,null,null,null,null,null,null,"únik plynu / aerosolu do vzduchu",null,null,null,null,null,null,null,"body : 2"]
[null,null,null,null,null,null,null,null,null,"fyzikálně mechanické působení",null,null,null,null,null,null,null,"body : 2"]
["19.","Možné následky scénáře identifikovaného v předchozím bodě se projeví jako ekologická újma na:",null,null,null,null,null,null,null,"vodě",null,null,null,null,null,null,null,"body : 5"]
[null,null,null,null,null,null,null,null,null,"půdě",null,null,null,null,null,null,null,"body : 2"]
[null,null,null,null,null,null,null,null,null,"chráněných druzích či přírodních stanovištích",null,null,null,null,null,null,null,"body : 5"]
["20.","Závažnost možných následků ekologické újmy identifikované v předchozím bodě",null,null,null,null,null,null,null,"velmi významné (součet B+C> 30 bodů)",null,null,null,null,null,null,null,"body : 10",null,{"$f":"IF(F143>=30,10,0)","v":0}]
[null,null,null,null,null,null,null,null,null,"významné (součet B+C 20 až 29 bodů)",null,null,null,null,null,null,null,"body : 5",null,{"$f":"IF(AND(F143>19,F143<30),5,0)","v":0}]
[null,"součet části B a C",null,null,null,{"$f":"T77+T108+T130","v":0},null,null,null,"málo významné (součet B+C< 19 bodů)",null,null,null,null,null,null,null,"body : 2",null,{"$f":"IF(W40=0,,IF(F143<=19,2,0))","v":0}]
[null,null,null,null,null,null,null,null,null,null,null,null,null,null,null,null,null,null,"Suma za část D",{"$f":"SUM(T134:U143)","v":0}]
[]
[]
["Část E",null,null,null,null,null,null,null,null,null,null,null,null,null,null,null,null,null,null,"Body"]
["21.","Existence dřívějších neoprávněných zásahů, havárií nebo ekologické újmy, ke kterým došlo v posledních 10 letech z důvodu:",null,null,null,null,null,null,"technické závady",null,null,null,null,null,null,null,null,"body : 5"]
[null,null,null,null,null,null,null,null,"selhání lidského faktoru",null,null,null,null,null,null,null,null,"body : 3"]
[null,null,null,null,null,null,null,null,"vnější příčiny",null,null,null,null,null,null,null,null,"body : 2"]
["22.","Následky dřívějších neoprávněných zásahů, havárií nebo ekologické újmy uvedené v předchozím bodě se projevily na:",null,null,null,null,null,null,"vodě",null,null,null,null,null,null,null,null,"body : 5"]
[null,null,null,null,null,null,null,null,"půdě",null,null,null,null,null,null,null,null,"body : 2"]
[null,null,null,null,null,null,null,null,"chráněných druzích nebo přírodních stanovištích",null,null,null,null,null,null,null,null,"body : 5"]
["23.","Následky dřívějších neoprávněných zásahů, havárií nebo ekologické újmy uvedené v předchozím bodě byly:",null,null,null,null,null,null,"velmi významné - náklady na likvidaci následků \npřesáhly 10 mil. Kč",null,null,null,null,null,null,null,null,"body : 10"]
[null,null,null,null,null,null,null,null,"významné - náklady na likvidaci následků \nv rozsahu 1 až 10 mil. Kč",null,null,null,null,null,null,null,null,"body : 5"]
[null,null,null,null,null,null,null,null,"málo významné - náklady na likvidaci následků \nv rozsahu pod 1 mil. Kč",null,null,null,null,null,null,null,null,"body : 2"]
["24.","Existence preventivních opatření a/nebo detekčního zařízení pro zamezení vzniku ekologické újmy:",null,null,null,"Provozovatel nepřijal žádné preventivní opatření nebo nemá instalované detekční zařízení pro zamezení vzniku ekologické újmy",null,null,null,null,null,null,null,null,null,null,null,"body : 5"]
[]
[null,null,null,null,null,"Provozovatel přijal preventivní opatření, má instalované detekční zařízení pro zamezení vzniku ekologické újmy a má havarijní plán zpracovaný podle §39 zákona č. 254/2001 Sb., ve znění pozdějších předpisů, nebo provozní řád vodního díla podle §59 odst. 1 písm. a) zákona č. 254/2001 Sb.,ve znění pozdějších předpisů",null,null,null,null,null,null,null,null,null,null,null,"mínusové body : \n- 5"]
[]
[]
[]
[]
[null,null,null,null,null,"Provozovatel přijal preventivní opatření, má instalované detekční zařízení pro zamezení vzniku ekologické újmy a má havarijní plán zpracovaný podle §39 zákona č. 254/2001 Sb., ve znění pozdějších předpisů, nebo provozní řád vodního díla podle §59 odst. 1 písm. a) zákona č. 254/2001 Sb.,ve znění pozdějších předpisů, a učinil další preventivní opatření, vyjma výše uvedených, které vycházejí z nejnovějších vědeckých a technických poznatků týkajících se environmentálního zabezpečení",null,null,null,null,null,null,null,null,null,null,null,"mínusové body : \n- 10"]
[]
[]
[]
[]
[]
[]
[]
[null,null,null,null,null,null,null,null,null,null,null,null,null,null,null,null,null,null,"Suma za část E",{"$f":"SUM(T148:U171)","v":0}]
[]
[]
["Část F",null,null,null,null,null,null,null,null,null,null,null,null,null,null,null,null,null,null,null,null,null,"Bližší informace k registraci v programu EMAS a certifikaci podle norem ČSN EN ISO 14 000 \n(zdroj: Metodický pokyn MŽP k podrobnému hodnocení rizik)\n\nProvádět podrobné hodnocení rizik a zabezpečovat finanční zajištění nemusí provozovatel, pokud je registrovaný v Programu EMAS nebo má certifikovaný systém environmentálního řízení podle norem ČSN EN ISO 14000.\n\nTato výjimka se vztahuje i na provozovatele, který prokazatelně zahájil činnosti potřebné k registraci v Programu EMAS, resp. k certifikaci podle norem ČSN EN ISO 14000, tj. provedl úvodní environmentální přezkoumání a přijetí environmentální politiky a dosáhl registrace nebo certifikace do jednoho roku ode dne, který určil za datum prokazatelně zahájené činnosti k registraci nebo certifikaci.\n\nNa provozovatele, který neukončil registraci v Programu EMAS, resp. k certifikaci podle norem ČSN EN ISO 14000 do jednoho roku od dne, které určil za datum prokazatelně zahájené činnosti k registraci nebo certifikaci, se pohlíží jako na provozovatele, který provádí provozní činnost v rozporu se zákonem, protože neprovedl hodnocení rizika, popřípadě nezabezpečil finanční zajištění podle § 14 zákona.\n\nPro provozní činnosti (uvedené v příloze č. 1 k zákonu č. 167/2008 Sb.), na které se nevztahuje registrace \nv programu EMAS nebo systém environmentálního řízení, podrobné hodnocení rizik provozovatel provádí."]
["Celkový počet bodů :",null,null,null,null,null,null,null,null,null,null,null,null,null,null,null,null,null,null,{"$f":"T77+T108+T130+T144+T172","v":0}]
[]
["Datum",null,{"$f":"'Údaje o firmě'!B11","v":"00:00:00"},null,null,null,null,"Podpis odpovědné osoby:"]
[]
[]
[]
[]
[]
[null,"Výsledné vyhodnocení základního hodnocení rizika:"]
[null,{"$f":"IF(T176=0,\"\",(IF(T176<=50,\"V základním hodnocení rizik nebylo dosaženo více než 50 bodů, podrobné hodnocení není nutno provádět. Finanční zajištění není nutné.\",\"Dosaženo více než 50 bodů. V případě, že máte certifikovaný program EMAS / EMS podle ISO 14 001, není nutné finanční zajištění ani podrobné hodonocení rizik. Pokud není EMAS/EMS ISO 14001 je nutné provést podrobné hodnocení.\")))","v":""}]

{"sheet":"nové hodnocení","index":3,"n_rows":185,"n_cols":36,"rows_kept":185,"cut":false,"hidden":true,"merged":[[90,26,90,32],[66,12,66,14],[62,12,62,14],[63,12,63,14],[64,12,64,14],[65,12,65,14],[66,22,66,37],[69,29,69,37],[70,29,70,37],[71,29,71,37],[69,25,71,28],[62,22,62,37],[63,22,63,37],[64,22,64,37],[65,22,65,37],[69,19,69,20],[127,0,128,0],[123,1,124,9],[127,1,128,9],[125,1,126,9],[123,0,124,0],[125,0,126,0],[177,0,177,1],[177,2,177,5],[152,8,152,16],[149,8,149,16],[150,1,151,7],[149,1,149,7],[148,8,148,16],[147,8,147,16],[147,0,149,0],[150,0,152,0],[151,8,151,16],[150,8,150,16],[147,1,148,7],[152,1,152,7],[133,0,136,0],[137,0,139,0],[140,0,142,0],[137,1,138,8],[183,1,183,18],[156,0,170,0],[163,5,170,16],[156,5,157,16],[158,5,162,16],[156,1,160,4],[161,1,170,4],[175,0,175,18],[153,0,155,0],[155,8,155,16],[153,8,153,16],[155,1,155,7],[154,8,154,16],[153,1,154,7],[163,17,170,18],[133,1,135,8],[136,1,136,8],[136,9,136,16],[137,9,137,16],[138,9,138,16],[120,1,121,9],[74,19,74,20],[75,19,75,20],[76,19,76,20],[92,19,92,20],[88,15,88,16],[88,17,88,18],[88,19,88,20],[89,15,89,16],[89,17,89,18],[90,15,90,16],[90,17,90,18],[90,19,90,20],[90,1,90,11],[90,12,90,14],[91,19,91,20],[98,17,98,18],[98,19,98,20],[100,15,100,16],[43,4,43,20],[30,2,30,20],[6,4,7,20],[8,4,9,20],[10,4,10,20],[11,0,11,20],[55,1,55,20],[52,1,54,20],[19,0,19,20],[31,2,31,20],[27,2,27,20],[28,2,28,20],[29,2,29,20],[32,2,32,20],[33,2,33,20],[26,2,26,20],[50,8,50,20],[48,1,48,7],[49,1,49,7],[49,8,49,20],[48,8,48,20],[50,1,50,7],[51,1,51,20],[0,0,4,20],[23,2,23,20],[24,2,24,20],[25,2,25,20],[10,1,10,3],[12,1,12,19],[17,4,17,19],[18,4,18,19],[13,1,14,19],[16,4,16,19],[16,1,16,3],[15,1,15,3],[18,1,18,3],[15,4,15,19],[5,0,5,20],[22,2,22,20],[21,1,22,1],[21,0,22,0],[21,2,21,20],[6,1,7,3],[8,1,9,3],[60,19,60,20],[61,19,61,20],[75,12,75,16],[69,8,69,11],[70,8,70,11],[71,8,71,11],[56,1,58,20],[86,12,87,14],[85,17,85,18],[86,15,86,16],[87,15,87,16],[87,17,87,18],[86,17,86,18],[84,19,84,20],[70,19,70,20],[71,19,71,20],[97,17,97,18],[96,17,96,18],[81,6,81,20],[95,13,95,16],[96,13,96,16],[95,19,95,20],[93,19,93,20],[94,15,94,16],[94,17,94,18],[93,15,93,16],[93,17,93,18],[91,1,92,11],[91,12,92,14],[91,15,91,16],[91,17,91,18],[92,15,92,16],[92,17,92,18],[95,17,95,18],[101,17,101,18],[101,19,101,20],[102,15,102,16],[102,17,102,18],[102,19,102,20],[103,15,103,16],[103,17,103,18],[103,19,103,20],[99,15,99,16],[99,17,99,18],[99,19,99,20],[100,17,100,18],[100,19,100,20],[104,17,104,18],[104,19,104,20],[106,15,106,16],[106,17,106,18],[106,19,106,20],[105,15,105,16],[105,17,105,18],[105,19,105,20],[107,19,107,20],[112,17,112,18],[112,19,112,20],[110,19,110,20],[111,0,111,18],[112,0,113,0],[113,19,113,20],[113,15,113,16],[113,17,113,18],[112,11,113,14],[112,15,112,16],[114,11,114,16],[132,19,132,20],[120,13,120,16],[120,17,120,18],[121,17,121,18],[123,17,123,18],[123,19,123,20],[124,15,124,16],[124,17,124,18],[128,19,128,20],[129,19,129,20],[128,10,128,14],[115,11,115,16],[114,17,115,18],[116,17,117,18],[118,17,119,18],[122,17,122,18],[125,17,125,18],[126,15,126,16],[126,17,126,18],[125,15,125,16],[125,10,125,14],[124,10,124,14],[123,10,123,14],[136,19,136,20],[134,17,134,18],[135,17,135,18],[134,19,134,20],[135,19,135,20],[136,17,136,18],[133,9,133,16],[134,9,134,16],[135,9,135,16],[133,19,133,20],[133,17,133,18],[118,0,119,0],[116,0,117,0],[116,1,117,10],[122,13,122,16],[118,11,118,16],[119,11,119,16],[117,11,117,16],[120,0,122,0],[121,13,121,16],[122,1,122,12],[116,11,116,16],[127,19,127,20],[128,15,128,16],[128,17,128,18],[120,19,120,20],[123,15,123,16],[124,19,124,20],[125,19,125,20],[126,19,126,20],[127,15,127,16],[127,17,127,18],[122,19,122,20],[121,19,121,20],[138,19,138,20],[137,17,137,18],[138,17,138,18],[139,19,139,20],[139,17,139,18],[137,19,137,20],[147,19,147,20],[148,17,148,18],[148,19,148,20],[140,17,140,18],[141,17,141,18],[142,17,142,18],[140,19,140,20],[141,19,141,20],[142,19,142,20],[146,0,146,18],[139,1,139,8],[140,1,141,8],[142,1,142,4],[142,5,142,8],[139,9,139,16],[140,9,140,16],[141,9,141,16],[142,9,142,16],[114,0,115,0],[154,17,154,18],[153,17,153,18],[174,22,190,33],[156,19,157,20],[158,17,162,18],[158,19,162,20],[156,17,157,18],[174,0,174,20],[175,19,175,20],[143,19,143,20],[146,19,146,20],[171,19,171,20],[132,0,132,18],[155,17,155,18],[155,19,155,20],[153,19,153,20],[152,17,152,18],[152,19,152,20],[147,17,147,18],[154,19,154,20],[163,19,170,20],[149,17,149,18],[149,19,149,20],[150,17,150,18],[150,19,150,20],[151,17,151,18],[151,19,151,20],[46,4,46,20],[42,0,42,20],[37,2,37,20],[34,2,34,20],[38,2,38,20],[35,2,35,20],[36,2,36,12],[36,13,36,19],[43,1,43,3],[44,1,44,3],[73,1,73,18],[87,19,87,20],[39,0,39,20],[40,0,40,20],[41,0,41,20],[47,8,47,20],[45,1,45,3],[44,4,44,20],[45,4,45,20],[98,0,99,0],[61,0,66,0],[68,0,71,0],[73,0,75,0],[184,1,189,18],[61,1,61,18],[68,1,68,18],[98,1,99,11],[100,1,101,11],[95,1,97,9],[95,10,97,12],[86,0,87,0],[88,1,89,11],[88,0,89,0],[88,12,89,14],[86,1,87,11],[91,0,92,0],[127,10,127,14],[126,10,126,14],[112,1,113,10],[114,1,115,10],[118,1,119,10],[120,10,121,12],[65,15,65,18],[74,12,74,16],[100,0,101,0],[102,0,103,0],[102,1,103,11],[104,0,106,0],[93,1,94,11],[93,12,94,14],[93,0,94,0],[95,0,97,0],[104,15,104,16],[104,1,106,14],[100,12,101,14],[102,12,103,14],[101,15,101,16],[97,13,97,16],[98,15,98,16],[98,12,99,14],[116,19,117,20],[118,19,119,20],[95,22,97,23],[93,22,94,30],[68,19,68,20],[62,19,62,20],[63,19,63,20],[64,19,64,20],[65,19,65,20],[66,19,66,20],[85,19,85,20],[86,19,86,20],[73,19,73,20],[94,19,94,20],[90,22,90,24],[96,19,96,20],[114,19,115,20],[111,19,111,20],[97,19,97,20],[77,26,83,37],[84,27,84,37],[89,19,89,20],[88,35,89,37],[96,31,96,33],[120,22,122,29],[74,26,75,32],[114,22,115,29],[110,27,112,31],[104,22,106,30],[102,22,103,23],[88,26,89,32],[91,24,92,30],[91,22,92,23],[98,22,99,23],[100,22,101,30],[98,24,99,30],[86,22,87,24],[86,26,87,28],[86,30,87,32],[102,24,103,30],[88,22,88,24],[95,24,97,30],[104,31,104,32],[93,32,94,34],[104,33,106,36],[88,33,89,34],[90,33,90,34],[91,31,92,32]]}
["Základní hodnocení rizika \nekologické újmy \npodle zákona č. 167/2008 Sb.\n o předcházení ekologické újmě a o její nápravě"]
[]
[]
[]
[]
[null,null,null,null,null,null,null,null,null,null,null,null,null,null,null,null,null,null,null,null,null,null,null," "," "]
[null,"Provozovatel:",null,null,{"$f":"IF('Údaje o firmě'!B3=\"\",\"\",'Údaje o firmě'!B3)","v":""},null,null,null,null,null,null,null,null,null,null,null,null,null,null,null,null,null,null,null,null," "," ",null,null,null," "]
[]
[null,"Sídlo:",null,null,{"$f":"IF('Údaje o firmě'!B4=\"\",\"\",'Údaje o firmě'!B4)","v":""}]
[null,null,null,null,null,null,null,null,null,null,null,null,null,null,null,null,null,null,null,null,null,null,null,null,null,null,null,null,null," "]
[null,"IČ:",null,null,{"$f":"IF('Údaje o firmě'!B5=\"\",\"\",'Údaje o firmě'!B5)","v":""}]
[]
[null,"Hodnocená provozní činnost:"]
[null,{"$f":"IF(X40=0,\"\",IF(W24=1,\"Všechny činnosti z přílohy č.1 zákona 167/2008 Sb., které jsou pod integrovaným povolením\",VLOOKUP(X40,B24:U39,2)))","v":""}]
[]
[null,"Název:",null,null,{"$f":"IF(B53=\"\",\"\",B53)","v":""}]
[null,"Umístění:",null,null,{"$f":"IF(B57=\"\",\"\",B57)","v":""}]
[null,"Zpracoval:",null,null,{"$f":"IF('Údaje o firmě'!B10=\"\",\"\",'Údaje o firmě'!B10)","v":""}]
[null,"Datum:",null,null,{"$f":"IF('Údaje o firmě'!B11=\"\",\"\",'Údaje o firmě'!B11)","v":""}]
[]
[]
["Výběr činnosti:\nA","číslo","Výběr provozní činnosti:"]
[null,null,"příloha č. 1 zákona č. 167/2008 Sb."]
[null,1,"Provozování zařízení podléhající vydání integrovaného povolení zákona č. 76/2002 Sb. o integrované prevenci",null,null,null,null,null,null,null,null,null,null,null,null,null,null,null,null,null,null,null,{"$f":"IF(A24=\"\",0,1)","v":0},{"$f":"IF(W24=1,B24,\"\")","v":""}]
[null,2,"Provozování zařízení k využívání, odstraňování, sběru nebo výkupu odpadů podléhajících souhlasu podle zákona o odpadech",null,null,null,null,null,null,null,null,null,null,null,null,null,null,null,null,null,null,null,{"$f":"IF(A25=\"\",0,1)","v":0},{"$f":"IF(W25=1,B25,\"\")","v":""}]
[null,3,"Vypouštění odpadních vod do vod povrchových nebo podzemních podléhajících povolení podle § 8 odst. 1 písm. c) zákona č. 254/2001 Sb. o vodách, Nařízení vlády č. 401/2015 Sb., o ukazatelích a hodnotách přípustného znečištění povrchových vod a odpadních vod, náležitostech povolení k vypouštění odpadních vod do vod povrchových a do kanalizací a o citlivých oblastech",null,null,null,null,null,null,null,null,null,null,null,null,null,null,null,null,null,null,null,0,""]
[null,4,"Čerpání znečištěných podzemních vod a jejich následné odvádění do vod povrchových nebo podzemních podléhající povolení podle § 8 odst. 1 písm. c) zákona č. 254/2001 Sb. o vodách",null,null,null,null,null,null,null,null,null,null,null,null,null,null,null,null,null,null,null,0,"",null,null,null," "]
[null,5,"Odběr povrchových vod podléhající povolení podle § 8 odst. 1 písm. a) bod 1 zákona č. 254/2001 Sb. o vodách",null,null,null,null,null,null,null,null,null,null,null,null,null,null,null,null,null,null,null,0,""]
[null,6,"Odběr podzemních vod podléhající povolení podle § 8 odst. 1 písm. b) bod 1 zákona č. 254/2001 Sb. o vodách",null,null,null,null,null,null,null,null,null,null,null,null,null,null,null,null,null,null,null,0,""]
[null,7,"Čerpání povrchových nebo podzemních vod a jejich následné vypouštění do těchto vod za účelem získání tepelné energie podléhající povolení podle z§ 8 odst. 1 písm. d) zákona č. 254/2001 Sb. o vodách",null,null,null,null,null,null,null,null,null,null,null,null,null,null,null,null,null,null,null,0,""]
[null,8,"Vzdouvání nebo akumulace povrchových vod podléhající povolení podle § 8 odst. 1 písm. a) bod 2 zákona č. 254/2001 Sb. o vodách",null,null,null,null,null,null,null,null,null,null,null,null,null,null,null,null,null,null,null,0,""]
[null,9,"Zacházení se závadnými látkami podle § 39 odst. 2 a 4 zákona č. 254/2001 Sb. o vodách, Vyhláška č. 450/2005 Sb., o náležitostech nakládání se závadnými látkami a náležitostech havarijního plánu, způsobu a rozsahu hlášení havárií, jejich zneškodňování a odstraňování jejich škodlivých následků",null,null,null,null,null,null,null,null,null,null,null,null,null,null,null,null,null,null,null,0,""]
[null,10,"Nakládání s nebezpečnými chemickými látkami a chemickými přípravky (zákon č. 350/2011 Sb. o chemických látkách a směsích), přípravky na ochranu rostlin (§ 2 odst. 2 písm. g) zákona č. 326/2004 Sb., o rostlinolékařské péči) nebo biocidními přípravky (zákon č. 324/2016 Sb., o biocidech) podle zvláštního právního předpisu (§ 44a zákona č. 258/2000 Sb., o ochraně veřejného zdraví)",null,null,null,null,null,null,null,null,null,null,null,null,null,null,null,null,null,null,null,0,""]
[null,11,"Přeprava nebezpečných chemických látek a nebezpečných chemických přípravků potrubím nebo v železniční (např. zákon č. 266/1994 Sb., o drahách, RID, COTIF), silniční (např. zákon č. 111/1994 Sb., o silniční dopravě, dohoda ADR), vodní vnitrozemské (zákon č. 114/1995 Sb., o vnitrozemské plavbě), letecké (vyhláška č. 17/1966 Sb., o leteckém přepravním řádu) nebo námořní dopravě (zákon č. 61/2000 Sb., o námořní plavbě)",null,null,null,null,null,null,null,null,null,null,null,null,null,null,null,null,null,null,null,0,""]
[null,12,"Nakládání s geneticky modifikovanými organismy a genetickými produkty podle zákon č. 78/2004 Sb., o nakládání s geneticky modifikovanými organismy a genetickými produkty",null,null,null,null,null,null,null,null,null,null,null,null,null,null,null,null,null,null,null,0,""]
[null,13,"Přeshraniční přeprava odpadů do České republiky, z České republiky a přes Českou republiku (zákon o odpadech)",null,null,null,null,null,null,null,null,null,null,null,null,null,null,null,null,null,null,null,0,""]
[null,14,"Provozování stacionárních zdrojů znečišťování ovzduší podléhajících povolení podle zákona o ovzduší",null,null,null,null,null,null,null,null,null,null,"Jedná se o zdroj s topným médiem plyn a při jeho činnosti nevznikají chem.látky ani odpady? Doplňte ano/ne:",null,null,null,null,null,null,"ne",null,0,"",{"$f":"IF(OR(U37=\"ano\",U37=\"ne\"),\"\",\"Doplňte pouze slovo ano nebo ne !!!\")","v":""}]
[null,15,"Nakládání s těžebním odpadem (zákon č. 157/2009 Sb., o nakládání s těžebním odpadem)",null,null,null,null,null,null,null,null,null,null,null,null,null,null,null,null,null,null,null,0,""]
[null,16,"Provozování úložišť oxidu uhličitého podléhajících povolení podle zákona č. 85/2012 Sb., o ukládání oxidu uhličitého do přírodních horninových struktur",null,null,null,null,null,null,null,null,null,null,null,null,null,null,null,null,null,null,null,0,""]
["Výsledek posouzení provozovaných činností:",null,null,null,null,null,null,null,null,null,null,null,null,null,null,null,null,null,null,null,null,null,{"$f":"SUM(W24:W39)","v":0},{"$f":"SUM(X24:X39)","v":0}]
[{"$f":"IF(W40=0,\"Není třeba dále posuzovat\",\"Je nutno dále posoudit\")","v":"Není třeba dále posuzovat"}]
[{"$f":"IF(W24=1,\"Vybrali jste činnost pod integrovaným povolením, v tomto případě označte výše písmenem A všechny činnosti, které Vaše IP zahrnuje\",(IF(W40>=2,\"Pozor, vybrali jste více činností! Každá činnost se posuzuje samostatně!\",\"\")))","v":""}]
["Část A - Identifikační údaje o provozovateli "]
["1.","Obchodní firma",null,null,{"$f":"IF('Údaje o firmě'!B3=\"\",\"\",'Údaje o firmě'!B3)","v":""}]
[null,"Sídlo",null,null,{"$f":"IF('Údaje o firmě'!B4=\"\",\"\",'Údaje o firmě'!B4)","v":""}]
[null,"IČO:",null,null,{"$f":"IF('Údaje o firmě'!B5=\"\",\"\",'Údaje o firmě'!B5)","v":""}]
[null,"Datová schránka",null,null,{"$f":"IF('Údaje o firmě'!B6=\"\",\"\",'Údaje o firmě'!B6)","v":""}]
["2.","Jméno a příjmení statutárního orgánu",null,null,null,null,null,null,{"$f":"IF('Údaje o firmě'!B7=\"\",\"\",'Údaje o firmě'!B7)","v":""}]
[null,"Telefon",null,null,null,null,null,null,{"$f":"IF('Údaje o firmě'!B8=\"\",\"\",'Údaje o firmě'!B8)","v":""}]
[null,"Email:",null,null,null,null,null,null,{"$f":"IF('Údaje o firmě'!B9=\"\",\"\",'Údaje o firmě'!B9)","v":""}]
["3.","Pořadové číslo činnosti",null,null,null,null,null,null,{"$f":"IF(W24=1,1,(IF(SUM(X24:X39)=0,\"\",SUM(X24:X39))))","v":""}]
["4.","Název místa provozní činnosti, pro které se provádí hodnocení rizika"]
[]
[]
[]
[null,"Poloha místa provozní činnosti, pro které se provádí hodnocení rizika"]
[]
[]
[]
[]
["Část B",null,null,null,null,null,null,null,null,null,null,null,null,null,null,null,null,null,null,"Body"]
["5.","Množství chemických látek a směsí umístěných v místě provozní činnosti uvedené pod body 10 a 11 přesahuje pro látky či směsi",null,null,null,null,null,null,null,null,null,null,null,null,null,null,null,null,null,{"$f":"IF(OR(W33=1,W34=1),\"Vyplnit\",\"Nevyplňovat\")","v":"Nevyplňovat"},null,null,"Zde můžete informačně uvést jednotlivé látky:"]
[null,"a) Vysoce toxické R-26, R-27, R-28, H330, H310, H300",null,null,null,null,null,null,null,null,null,null,null,null,null,null,null,null,"limit : 0,5 t, body : 10"]
[null,"b) Toxické R-23, R-24, R-25, H331, H311, H301",null,null,null,null,null,null,null,null,null,null,null,null,null,null,null,null,"limit : 5,0 t, body : 10"]
[null,"c) Nebezpečné pro ŽP R50, H400",null,null,null,null,null,null,null,null,null,null,null,null,null,null,null,null,"limit : 10,0 t, body : 10"]
[null,"d) Nebezpečné pro ŽP R51,R52,R53,R54,R55,R56,H411,H412,H413",null,null,null,null,null,null,null,null,null,null,null,null,null,"limit : 20 t, body : 10"]
[null,"e) Látky, které při styku s vodou uvolňují toxický plyn R29, EUH029",null,null,null,null,null,null,null,null,null,null,null,null,null,null,null,null,"limit : 0,5 t, body : 10"]
[]
["6.","Množství závadných látek v místě provozní činnosti pod bodem 9 přesahuje pro",null,null,null,null,null,null,null,null,null,null,null,null,null,null,null,null,null,{"$f":"IF(W32=1,\"Vyplnit\",\"Nevyplňovat\")","v":"Nevyplňovat"},null,null,null,null,null,null,null,null,null,"Zde můžete informačně uvést jednotlivé závadné látky, NZL či ZNZL:"]
[null,"a) závadné látky",null,null,null,null,null,null,null,null,null,null,null,null,null,null,null,null,"množství 2000 l nebo 2000 kg, body : 5",null,null,null,null,null,null,"příloha č. 1 vodního zákona uvádí nebezpečné závadné látky a zvlášť nebezpečné závadné látky"]
[null,"b) nebezpečné závadné látky ",null,null,null,null,null,null,null,null,null,null,null,null,null,null,null,null,"množství 150 l nebo 150 kg, body : 5"]
[null,"c) zvlášť nebezpečné závadné látky",null,null,null,null,null,null,null,null,null,null,null,null,null,null,null,null,"množství 15 l nebo 15 kg, body : 5"]
[]
["7.","Provozovatel, který je oprávněn nakládat v místě provozní činnosti s nebezpečnými odpady, vybranými výrobky, vybranými odpady nebo vybranými zařízeními",null,null,null,null,null,null,null,null,null,null,null,null,null,null,null,null,null,{"$f":"IF(OR(W25=1,W27=1,W32=1,W33=1,W34=1,W35=1,W36=1,AND(W37=1,U37=\"ne\"),W38=1),\"Vyplnit\",\"Nevyplňovat\")","v":"Nevyplňovat"}]
[null,"a) s nebezpečnými odpady: ",null,null,null,null,null,null,null,null,null,null,null,null,null,null,null,null,"body : 5",null,null,null,null,null,null,null,"Provozovatel stacionárního zdroje znečišťování ovzduší (provozní činnost 14) s povolením na topné medium plyn a při jehož činnosti nevznikají chemické látky ani odpady, část B a C nevyplňuje."]
[null,"b) s vybranými výrobky, vybranými odpady či vybranými zařízeními:",null,null,null,null,null,null,null,null,null,null,null,null,null,null,null,null,"body : 5"]
[null,null,null,null,null,null,null,null,null,null,null,null,null,null,null,null,null,null,"Suma za část B",{"$f":"T63+T64+T65+T66+T67+T70+T71+T72+T75+T76","v":0}]
[]
[]
["Posouzení dalšího postupu hodnocení rizika:"]
[]
[]
[null,null,null,null,null,null,null,null,null,{"$f":"IF(AND(T77=0,OR(W32=1,W33=1,W34=1,W37=1,W38=1)),\"Část C se nevyplňuje, pokračujte až částí D!\",\"Část C (část 1 či 2 - viz dále) je nutno vyplnit!\")","v":"Část C (část 1 či 2 - viz dále) je nutno vyplnit!"}]
[]
["Část C -1",null,null,null,null,null,null,null,null,null,null,null,null,null,null,null,null,null,null,"Body"]
["Část C.1 - pro provozní činnosti uvedené pod body 1, 2, 9 až 15",null,null,null,null,null,null,null,null,null,null,null,null,null,null,null,null,null,null,{"$f":"IF(W24=1,\"Vyplnit\",IF(AG86+AF86=2,\"Vyplnit\",\"Nevyplňovat\"))","v":"Nevyplňovat"},null,null,null,null,null,null,null,null,null,null,null,{"$f":"IF(AND(T77=0,OR(W32=1,W33=1,W34=1,W37=1,W38=1,W40=0)),\"0\",\"1\")","v":"0"},{"$f":"IF(OR(W24=1,W25=1,W32=1,W33=1,W34=1,W35=1,W36=1,W37=1,W38=1,W39=1),\"1\",\"0\")","v":"0"}]
["8.","Název vymezené ptačí oblasti nebo evropsky významné lokality a jeho vzdálenost od místa provozní činnost:",null,null,null,null,null,null,null,null,null,null,null,null,null,"do 100 m",null,"body : 10",null,null,null,null,"odkaz na mapy AOPKČR",null,null,null,"návod na použití mapy Agentura ochrany přírody a krajiny České republiky"]
[null,null,null,null,null,null,null,null,null,null,null,null,null,null,null,"100 - 500 m",null,"body : 5"]
["9.","Název nejbližšího významného vodního toku a jeho vzdálenost od místa provozní činnosti:",null,null,null,null,null,null,null,null,null,null,null,null,null,"do 50 m",null,"body : 5",null,null,null,null,"odkaz na mapu",null,null,null,"Nejdříve si zjistěte, zda se do vzdálenosti 500 m od místa činnosti nějaký vodní tok nachází (například na mapě-viz odkaz vlevo). Pak zkuste najít jeho název v příloze č. 1 vyhl. 178/2012 Sb. (viz odkaz vpravo), abyste zjistili, zda se jedná o významný tok či nikoliv.",null,null,null,null,null,null,"příloha č. 1 vyhlášky č. 178/2012 Sb.",null,"Poznámka ZF: osobně vzdálenosti pak měřím  na mapě na Seznam.cz, na mapě VUV se mi to moc nedaří."]
[null,null,null,null,null,null,null,null,null,null,null,null,null,null,null,"50 - 500 m",null,"body : 2"]
["10.","Název zranitelné oblasti a její vzdálenost od místa provozní činnosti:",null,null,null,null,null,null,null,null,null,null,null,null,null,"do 50 m",null,"body : 5",null,null,null,null,"odkaz na mapu",null,null,null,"Za zranitelnou oblast je považováno vždy celé katastrální území - seznam je v příloze č.1 NV 262/2012 Sb. (viz odkaz vpravo).",null,null,null,null,null,null,"příloha č. 1 nařízení vlády č. 262/2012 Sb."]
["11.","Název povrchových vod vhodných pro život a reprodukci původních druhů ryb a dalších vodních živočichů a jejich vzdálenost od místa provozní činnosti:",null,null,null,null,null,null,null,null,null,null,null,null,null,"do 25 m",null,"body : 5",null,null,null,null,"odkaz na mapu",null,"(bod 10 pro část C2) Název povrchových vod vhodných pro život a reprodukci původních druhů ryb a dalších vodních živočichů se uvede podle přílohy č. 1 nařízení vlády č. 71/2003 Sb. Hledat můžete i na informačním mapovém portále - odkaz vlevo.",null,null,null,null,null,null,"příloha č. 1 NV č. 71/2003 Sb."]
[null,null,null,null,null,null,null,null,null,null,null,null,null,null,null,"25 - 250 m",null,"body : 2"]
["12.","Název vodní nádrže, popř. vodárenské nádrže a její vzdálenost od místa provozní činnosti:",null,null,null,null,null,null,null,null,null,null,null,null,null,"do 25 m",null,"body : 5",null,null,null,null,"(bod 11 pro část C2) Název vodní nádrže se zjistí podle § 5 odst. 1 vyhlášky č. 252/2013 Sb. A vodárenské nádrže s akumulací větší než 1 mil. m3  jsou uvedeny v příloze vyhlášky č. 137/1999 Sb.",null,null,null,null,null,null,null,null,"vodní nádrže:","odkaz na mapu (na mapě si zapněte vrstvu Nádrže)"]
[null,null,null,null,null,null,null,null,null,null,null,null,null,null,null,"25 - 250 m",null,"body : 2",null,null,null,null,null,null,null,null,null,null,null,null,null,"vodárenské nádrže:"]
["13.","Název a číselný identifikátor hydrogeologického rajonu v místě provozní činnosti:",null,null,null,null,null,null,null,null,null,null,null,"Začíná číslem 1 a 21",null,null,null,"body : 5",null,null,null,null,"odkaz na mapu",null,"(bod 12 pro část C2) Název a číselný identifikátor hydrogeologického rajonu se uvede podle přílohy č. 6 vyhlášky č. 5/2011 Sb. Číselné označení rajonu je možno také vyhledat na mapovém portále - odkaz vlevo."]
[null,null,null,null,null,null,null,null,null,null,null,null,null,"Začíná číslem 4 \ns výjimkou čísla 43",null,null,null,"body : 2",null,null,null,null,null,null,null,null,null,null,null,null,null,"příloha č.6 vyhl. 5/2011 Sb."]
[null,null,null,null,null,null,null,null,null,null,null,null,null,"Začíná jiným číslem",null,null,null,"body : 1"]
["14.","Název ochranného pásma vodních zdrojů a jeho vzdálenost od místa provozní činnosti:",null,null,null,null,null,null,null,null,null,null,null,null,null,"do 50 m",null,"body : 5",null,null,null,null,"odkaz na mapu",null,"(bod 13 pro část C2) Ochranná pásma jsou vyznačena tabulkami v terénu a jejich mapové zobrazení je uvedené na vodohospodářských mapách a je možno také vyhledat na mapovém portále - odkaz vlevo."]
[null,null,null,null,null,null,null,null,null,null,null,null,null,null,null,"50 - 250 m",null,"body : 2"]
["15.","Název ochranného pásma přírodních léčivých zdrojů a zdrojů přírodní minerální vody a jeho vzdálenosti od místa provozní činnosti:",null,null,null,null,null,null,null,null,null,null,null,null,null,"do 50 m",null,"body : 10",null,null,null,null,"(bod 14 pro část C2) Název ochranného pásma přírodních léčivých zdrojů a zdrojů přírodní minerální vody se vyhledá v prováděcích předpisech k zákonu č. 164/2001 Sb. lázeňský zákon, kde jsou graficky vyznačeny.",null,null,null,null,null,null,null,null,null,"https://www.zakonyprolidi.cz/cs/2001-164/souvislosti"]
[null,null,null,null,null,null,null,null,null,null,null,null,null,null,null,"50 - 250 m",null,"body : 5",null,null,null,null,null,null,null,null,null,null,null,null,null,null,"Ochranná pásma a lázeňská místa"]
["16.","Název chráněné oblasti přirozené akumulace podzemních vod a její vzdálenost k místu provozní činnosti:",null,null,null,null,null,null,null,null,null,null,null,null,null,"do 50 m",null,"body : 5",null,null,null,null,"odkaz na mapu",null,"(bod 15 pro část C2) Název chráněné oblasti přirozené akumulace podzemních vod podle § 28 zákona č. 254/2001 Sb. Tyto oblasti jsou stanoveny samostatným prováděcím předpisem, ve kterém je uveden popis jejich hranic. Možno také vyhledat na mapě - viz odkaz vlevo."]
[null,null,null,null,null,null,null,null,null,null,null,null,null,null,null,"50 - 250 m",null,"body : 2"]
["17.","Topografické poměry území - sklon terénu a jeho směr k vodohospodářským objektům a jiným chráněným územím uvedeným u výše uvedených bodů",null,null,null,null,null,null,null,null,null,null,null,null,null,"do 7°",null,"body : 2",null,null,null,null,"Topografické poměry území – průměrný sklon terénu a jeho směr k vodohospodářským objektům a jiným chráněným územím uvedeným v bodě 8 – 17 se uvedou na základě odečtu z mapy nebo přímého měření v terénu.\nPokud není přímá spojitost mezi místem činnosti a zmíněnými objekty a územími (například se mezi nimi nalézá údolí), bodové ohodnocení je 0.",null,null,null,null,null,null,null,null,"odkaz na mapy",null,"Zapnout tématickou úlohu Přírodní poměry, pak výběr Sklonitosti ve skupině Výškopis. Pak zapnout zobrazení legendy. V nastavení služby Výškopis (...) lze zvýšit průhlednost vrstvy a tím snáze najít přesné místo činnosti."]
[null,null,null,null,null,null,null,null,null,null,null,null,null,null,null,"7°do 12 °",null,"body : 3"]
[null,null,null,null,null,null,null,null,null,null,null,null,null,null,null,"více než 12°",null,"body : 5"]
[null,null,null,null,null,null,null,null,null,null,null,null,null,null,null,null,null,null,"Suma za část C.1",{"$f":"SUM(T87:U107)","v":0}]
[]
[]
["Část C - 2",null,null,null,null,null,null,null,null,null,null,null,null,null,null,null,null,null,null,"Body",null,null,null,null,null,null,null,"Výše uvedené vysvětlivky v části C.1 platí i pro tuto část C.2."]
["Část C.2 - pro provozní činnosti uvedené pod body 3 až 8",null,null,null,null,null,null,null,null,null,null,null,null,null,null,null,null,null,null,{"$f":"IF(W24=1,\"Nevyplňovat\",(IF(OR(W26=1,W27=1,W28=1,W29=1,W30=1,W31=1),\"Vyplnit\",\"Nevyplňovat\")))","v":"Nevyplňovat"}]
["8.","Název vymezené ptačí oblasti nebo evropsky významné lokality a jeho vzdálenost od místa provozní činnosti:",null,null,null,null,null,null,null,null,null,null,null,null,null,"do 100 m",null,"body : 10"]
[null,null,null,null,null,null,null,null,null,null,null,null,null,null,null,"100 - 500 m",null,"body : 5",null,null,null,null,null,null,null,null,null,null,null,null,null,{"$f":"IF(OR(W26=1,W27=1),1,0)","v":0},"0 - nevyplnit, 1 - vyplnit"]
["9.","Název nejbližšího významného vodního toku:\n(pouze v případě provozní činnosti č. 3 nebo 4)",null,null,null,null,null,null,null,null,null,{"$f":"IF(W24=1,\"Nevyplňovat\",(IF(AF114+AF115=2,\"Vyplnit\",\"Nevyplňovat\")))","v":"Nevyplňovat"},null,null,null,null,null,"body : 5",null,null,null,null,"Vyplňte pouze pokud se vypouští (činnost č.3) či odvádí (činnost č.4) do povrchových vod (tj. pokud je významný tok přímo dotčen činností)\nV opačném případě vyplňuje bod č. 12.",null,null,null,null,null,null,null,null,{"$f":"IF(OR(T121>0,T122>0,T123>0),0,1)","v":1}]
[]
["10.","Název povrchových vod vhodných pro život a reprodukci původních druhů ryb a dalších vodních živočichů a jejich vzdálenost od místa provozní činnosti (pouze v případě, že jsou tyto vody přímo dotčené provozní činností č. 3 nebo 4):",null,null,null,null,null,null,null,null,null,{"$f":"IF(W24=1,\"Nevyplňovat\",(IF(OR(W26=1,W27=1),\"Vyplnit\",\"Nevyplňovat\")))","v":"Nevyplňovat"},null,null,null,null,null,"body : 5"]
[]
["11.","Název vodní nádrže, popř. vodárenské nádrže:\n(pouze v případě provozní činnosti č. 3 nebo 4)",null,null,null,null,null,null,null,null,null,{"$f":"IF(W24=1,\"Nevyplňovat\",(IF(OR(W26=1,W27=1),\"Vyplnit\",\"Nevyplňovat\")))","v":"Nevyplňovat"},null,null,null,null,null,"body : 5"]
[]
["12.","Název a číselný identifikátor hydrogeologického rajonu v místě provozní činnosti:",null,null,null,null,null,null,null,null,{"$f":"IF(W24=1,\"Nevyplňovat\",(IF(AF121+AF122=2,\"Vyplnit\",\"Nevyplňovat\")))","v":"Nevyplňovat"},null,null,"Začíná číslem 1 a 21",null,null,null,"body : 5",null,null,null,null,"Vyplňujete pouze pokud provozovatel vypouští (provozní činnost č.3) či odvádí (provozní činnost č.4) do podzemních vod. \nV opačném případě vyplňuje bod č. 9.",null,null,null,null,null,null,null,null,{"$f":"IF(OR(W26=1,W27=1,W30=1),1,0)","v":0},"0 - nevyplnit, 1 - vyplnit"]
[null,null,null,null,null,null,null,null,null,null,null,null,null,"Začíná číslem 4 s výjimkou čísla 43",null,null,null,"body : 2",null,null,null,null,null,null,null,null,null,null,null,null,null,{"$f":"IF(T115>0,0,1)","v":1}]
[null,null,null,null,null,null,null,null,null,null,null,null,null,"Začíná jiným číslem",null,null,null,"body : 1"]
["13.","Název ochranného pásma vodních zdrojů a jeho vzdálenost od místa provozní činnosti:",null,null,null,null,null,null,null,null,{"$f":"IF(W24=1,\"Nevyplňovat\",(IF(OR(W26=1,W27=1,W30=1),\"Vyplnit\",\"Nevyplňovat\")))","v":"Nevyplňovat"},null,null,null,null,"do 50 m",null,"body : 5"]
[null,null,null,null,null,null,null,null,null,null,null,null,null,null,null,"50 - 250 m",null,"body : 2"]
["14.","Název ochranného pásma přírodních léčivých zdrojů a zdrojů přírodní minerální vody a jeho vzdálenosti od místa provozní činnosti:",null,null,null,null,null,null,null,null,{"$f":"IF(W24=1,\"Nevyplňovat\",(IF(OR(W26=1,W27=1,W29=1,W30=1),\"Vyplnit\",\"Nevyplňovat\")))","v":"Nevyplňovat"},null,null,null,null,"do 50 m",null,"body : 10"]
[null,null,null,null,null,null,null,null,null,null,null,null,null,null,null,"50 - 250 m",null,"body : 5"]
["15.","Název chráněné oblasti přirozené akumulace podzemních vod a její vzdálenost k místu provozní činnosti:",null,null,null,null,null,null,null,null,{"$f":"IF(W24=1,\"Nevyplňovat\",(IF(OR(W26=1,W27=1,W29=1,W30=1),\"Vyplnit\",\"Nevyplňovat\")))","v":"Nevyplňovat"},null,null,null,null,"do 50 m",null,"body : 5"]
[null,null,null,null,null,null,null,null,null,null,null,null,null,null,null,"50 - 250 m",null,"body : 2"]
[null,null,null,null,null,null,null,null,null,null,null,null,null,null,null,null,null,null,"Suma za část C.2",{"$f":"SUM(T113:U129)","v":0}]
[]
[]
["Část D",null,null,null,null,null,null,null,null,null,null,null,null,null,null,null,null,null,null,"Body"]
["18.","Identifikace možných scénářů vzniku ekologické újmy pro hodnocenou provozní činnost",null,null,null,null,null,null,null,"únik kapalné látky do půdy / vody",null,null,null,null,null,null,null,"body : 5"]
[null,null,null,null,null,null,null,null,null,"působení pevné látky na půdu / vodu",null,null,null,null,null,null,null,"body : 2"]
[null,null,null,null,null,null,null,null,null,"únik plynu / aerosolu do vzduchu",null,null,null,null,null,null,null,"body : 2"]
[null,null,null,null,null,null,null,null,null,"fyzikálně mechanické působení",null,null,null,null,null,null,null,"body : 2"]
["19.","Možné následky scénáře identifikovaného v předchozím bodě se projeví jako ekologická újma na:",null,null,null,null,null,null,null,"vodě",null,null,null,null,null,null,null,"body : 5"]
[null,null,null,null,null,null,null,null,null,"půdě",null,null,null,null,null,null,null,"body : 2"]
[null,null,null,null,null,null,null,null,null,"chráněných druzích či přírodních stanovištích",null,null,null,null,null,null,null,"body : 5"]
["20.","Závažnost možných následků ekologické újmy identifikované v předchozím bodě",null,null,null,null,null,null,null,"velmi významné (součet B+C> 30 bodů)",null,null,null,null,null,null,null,"body : 10",null,{"$f":"IF(F143>=30,10,0)","v":0}]
[null,null,null,null,null,null,null,null,null,"významné (součet B+C 20 až 29 bodů)",null,null,null,null,null,null,null,"body : 5",null,{"$f":"IF(AND(F143>19,F143<30),5,0)","v":0}]
[null,"součet části B a C",null,null,null,{"$f":"T77+T108+T130","v":0},null,null,null,"málo významné (součet B+C< 19 bodů)",null,null,null,null,null,null,null,"body : 2",null,{"$f":"IF(W40=0,,IF(F143<=19,2,0))","v":0}]
[null,null,null,null,null,null,null,null,null,null,null,null,null,null,null,null,null,null,"Suma za část D",{"$f":"SUM(T134:U143)","v":0}]
[]
[]
["Část E",null,null,null,null,null,null,null,null,null,null,null,null,null,null,null,null,null,null,"Body"]
["21.","Existence dřívějších neoprávněných zásahů, havárií nebo ekologické újmy, ke kterým došlo v posledních 10 letech z důvodu:",null,null,null,null,null,null,"technické závady",null,null,null,null,null,null,null,null,"body : 5"]
[null,null,null,null,null,null,null,null,"selhání lidského faktoru",null,null,null,null,null,null,null,null,"body : 3"]
[null,null,null,null,null,null,null,null,"vnější příčiny",null,null,null,null,null,null,null,null,"body : 2"]
["22.","Následky dřívějších neoprávněných zásahů, havárií nebo ekologické újmy uvedené v předchozím bodě se projevily na:",null,null,null,null,null,null,"vodě",null,null,null,null,null,null,null,null,"body : 5"]
[null,null,null,null,null,null,null,null,"půdě",null,null,null,null,null,null,null,null,"body : 2"]
[null,null,null,null,null,null,null,null,"chráněných druzích nebo přírodních stanovištích",null,null,null,null,null,null,null,null,"body : 5"]
["23.","Následky dřívějších neoprávněných zásahů, havárií nebo ekologické újmy uvedené v předchozím bodě byly:",null,null,null,null,null,null,"velmi významné - náklady na likvidaci následků \npřesáhly 10 mil. Kč",null,null,null,null,null,null,null,null,"body : 10"]
[null,null,null,null,null,null,null,null,"významné - náklady na likvidaci následků \nv rozsahu 1 až 10 mil. Kč",null,null,null,null,null,null,null,null,"body : 5"]
[null,null,null,null,null,null,null,null,"málo významné - náklady na likvidaci následků \nv rozsahu pod 1 mil. Kč",null,null,null,null,null,null,null,null,"body : 2"]
["24.","Existence preventivních opatření a/nebo detekčního zařízení pro zamezení vzniku ekologické újmy:",null,null,null,"Provozovatel nepřijal žádné preventivní opatření nebo nemá instalované detekční zařízení pro zamezení vzniku ekologické újmy",null,null,null,null,null,null,null,null,null,null,null,"body : 5"]
[]
[null,null,null,null,null,"Provozovatel přijal preventivní opatření, má instalované detekční zařízení pro zamezení vzniku ekologické újmy a má havarijní plán zpracovaný podle §39 zákona č. 254/2001 Sb., ve znění pozdějších předpisů, nebo provozní řád vodního díla podle §59 odst. 1 písm. a) zákona č. 254/2001 Sb.,ve znění pozdějších předpisů",null,null,null,null,null,null,null,null,null,null,null,"mínusové body : \n- 5"]
[]
[]
[]
[]
[null,null,null,null,null,"Provozovatel přijal preventivní opatření, má instalované detekční zařízení pro zamezení vzniku ekologické újmy a má havarijní plán zpracovaný podle §39 zákona č. 254/2001 Sb., ve znění pozdějších předpisů, nebo provozní řád vodního díla podle §59 odst. 1 písm. a) zákona č. 254/2001 Sb.,ve znění pozdějších předpisů, a učinil další preventivní opatření, vyjma výše uvedených, které vycházejí z nejnovějších vědeckých a technických poznatků týkajících se environmentálního zabezpečení",null,null,null,null,null,null,null,null,null,null,null,"mínusové body : \n- 10"]
[]
[]
[]
[]
[]
[]
[]
[null,null,null,null,null,null,null,null,null,null,null,null,null,null,null,null,null,null,"Suma za část E",{"$f":"SUM(T148:U171)","v":0}]
[]
[]
["Část F",null,null,null,null,null,null,null,null,null,null,null,null,null,null,null,null,null,null,null,null,null,"Bližší informace k registraci v programu EMAS a certifikaci podle norem ČSN EN ISO 14 000 \n(zdroj: Metodický pokyn MŽP k podrobnému hodnocení rizik)\n\nProvádět podrobné hodnocení rizik a zabezpečovat finanční zajištění nemusí provozovatel, pokud je registrovaný v Programu EMAS nebo má certifikovaný systém environmentálního řízení podle norem ČSN EN ISO 14000.\n\nTato výjimka se vztahuje i na provozovatele, který prokazatelně zahájil činnosti potřebné k registraci v Programu EMAS, resp. k certifikaci podle norem ČSN EN ISO 14000, tj. provedl úvodní environmentální přezkoumání a přijetí environmentální politiky a dosáhl registrace nebo certifikace do jednoho roku ode dne, který určil za datum prokazatelně zahájené činnosti k registraci nebo certifikaci.\n\nNa provozovatele, který neukončil registraci v Programu EMAS, resp. k certifikaci podle norem ČSN EN ISO 14000 do jednoho roku od dne, které určil za datum prokazatelně zahájené činnosti k registraci nebo certifikaci, se pohlíží jako na provozovatele, který provádí provozní činnost v rozporu se zákonem, protože neprovedl hodnocení rizika, popřípadě nezabezpečil finanční zajištění podle § 14 zákona.\n\nPro provozní činnosti (uvedené v příloze č. 1 k zákonu č. 167/2008 Sb.), na které se nevztahuje registrace \nv programu EMAS nebo systém environmentálního řízení, podrobné hodnocení rizik provozovatel provádí."]
["Celkový počet bodů :",null,null,null,null,null,null,null,null,null,null,null,null,null,null,null,null,null,null,{"$f":"T77+T108+T130+T144+T172","v":0}]
[]
["Datum",null,{"$f":"'Údaje o firmě'!B11","v":"00:00:00"},null,null,null,null,"Podpis odpovědné osoby:"]
[]
[]
[]
[]
[]
[null,"Výsledné vyhodnocení základního hodnocení rizika:"]
[null,{"$f":"IF(T176=0,\"\",(IF(T176<=50,\"V základním hodnocení rizik nebylo dosaženo více než 50 bodů, podrobné hodnocení není nutno provádět. Finanční zajištění není nutné.\",\"Dosaženo více než 50 bodů. V případě, že máte certifikovaný program EMAS / EMS podle ISO 14 001, není nutné finanční zajištění ani podrobné hodonocení rizik. Pokud není EMAS/EMS ISO 14001 je nutné provést podrobné hodnocení.\")))","v":""}]

{"sheet":"závadné látky","index":4,"n_rows":25,"n_cols":2,"rows_kept":25,"cut":false,"hidden":false,"merged":[[0,0,0,1],[15,0,15,1],[2,0,2,1],[3,0,3,1],[12,0,12,1],[14,0,14,1]]}
["Příloha č. 1 zákona 254/2001 Sb. o vodách"]
[]
["Zvlášť nebezpečné závadné látky:"]
["Zvlášť nebezpečné látky jsou látky náležející do dále uvedených skupin látek, s výjimkou těch, jež jsou biologicky neškodné nebo se rychle mění na látky biologicky neškodné:"]
["1.","organohalogenové sloučeniny a látky, které mohou tvořit takové sloučeniny ve vodním prostředí,"]
["2.","organofosforové sloučeniny,"]
["3.","organocínové sloučeniny,"]
["4.","látky vykazující karcinogenní, mutagenní nebo teratogenní vlastnosti ve vodním prostředí nebo jeho vlivem,"]
["5.","rtuť a její sloučeniny,"]
["6.","kadmium a jeho sloučeniny,"]
["7.","persistentní minerální oleje a persistentní uhlovodíky ropného původu,"]
["8.","persistentní syntetické látky, které se mohou vznášet, zůstávat v suspenzi nebo klesnout ke dnu a které mohou zasahovat do jakéhokoliv užívání vod."]
["Jednotlivé zvlášť nebezpečné látky jsou uvedeny v nařízení vlády č. 401/2005 Sb. (podle § 39 odst. 3 zákona). Ostatní látky náležející do uvedených skupin v tomto nařízení neuvedené se považují za nebezpečné látky."]
[]
["Nebezpečné závadné látky:"]
["Nebezpečné látky jsou látky náležející do dále uvedených skupin:"]
["1. ","Metaloidy, kovy a jejich sloučeniny (1. zinek, 2. měď, 3. nikl, 4. chrom, 5. olovo, 6. selen, 7. arsen, 8. antimon, 9. molybden, 10. titan, 11. cín, 12. baryum, 13. berylium, 14. bor, 15. uran, 16. vanad, 17. kobalt, 18. thalium, 19. telur, 20. stříbro)."]
["2.","Biocidy a jejich deriváty neuvedené v seznamu zvlášť nebezpečných látek."]
["3.","Látky, které mají škodlivý účinek na chuť nebo na vůni produktů pro lidskou spotřebu pocházejících z vodního prostředí, a sloučeniny mající schopnost zvýšit obsah těchto látek ve vodách."]
["4.","Toxické nebo persistentní organické sloučeniny křemíku a látky, které mohou zvýšit obsah těchto sloučenin ve vodách, vyjma těch, jež jsou biologicky neškodné nebo se rychle přeměňují ve vodě na neškodné látky."]
["5.","Elementární fosfor a anorganické sloučeniny fosforu."]
["6.","Nepersistentní minerální oleje a nepersistentní uhlovodíky ropného původu."]
["7.","Fluoridy."]
["8.","Látky, které mají nepříznivý účinek na kyslíkovou rovnováhu, zejména amonné soli a dusitany."]
["9.","Kyanidy."]

{"sheet":"návod na mapy","index":5,"n_rows":1,"n_cols":2,"rows_kept":1,"cut":false,"hidden":false,"merged":[[0,1,0,5]]}
[null,"Odkaz na mapový portál AOPKČR"]